Department Family,Entity,Date,Expense Type,Expense Area,Supplier,Transaction Number,Amount In Sterling
"Department for Business, Innovation and Skills","Department for Business, Innovation and Skills",05/08/2010,Financial Advice and Services,Business Group - Advanced Manufacturing Industries,INTERIM PERFORMERS LTD,1003522,2491
"Department for Business, Innovation and Skills","Department for Business, Innovation and Skills",03/08/2010,Financial Advice and Services,Business Group - Advanced Manufacturing Industries,INTERIM PERFORMERS LTD,1003066,2802.375
"Department for Business, Innovation and Skills","Department for Business, Innovation and Skills",19/08/2010,Financial Advice and Services,Business Group - Advanced Manufacturing Industries,INTERIM PERFORMERS LTD,1004816,6227.5
"Department for Business, Innovation and Skills","Department for Business, Innovation and Skills",16/08/2010,Financial Advice and Services,Business Group - Advanced Manufacturing Industries,ERNST & YOUNG LLP,1004558,7343.75
"Department for Business, Innovation and Skills","Department for Business, Innovation and Skills",16/08/2010,Financial Advice and Services,Business Group - Advanced Manufacturing Industries,ERNST & YOUNG LLP,1004555,7343.75
"Department for Business, Innovation and Skills","Department for Business, Innovation and Skills",06/08/2010,Technical Support,Business Group - Advanced Manufacturing Industries,ELIZABETH BRIGNALL,1003636,12337.5
"Department for Business, Innovation and Skills","Department for Business, Innovation and Skills",03/08/2010,Technical Support,Business Group - Advanced Manufacturing Industries,MICHAEL J RUSSELL LTD,1003309,13982.5
"Department for Business, Innovation and Skills","Department for Business, Innovation and Skills",11/08/2010,Publications (Programme),Business Group - Advanced Manufacturing Industries,CONSENSUS ECONOMICS INC,1004156,-540.5
"Department for Business, Innovation and Skills","Department for Business, Innovation and Skills",11/08/2010,Publications (Programme),Business Group - Advanced Manufacturing Industries,CONSENSUS ECONOMICS INC,1004156,540.5
"Department for Business, Innovation and Skills","Department for Business, Innovation and Skills",02/08/2010,Non-GIA Funding of Bodies (Departmental and Non-Departmental),Fair Markets Group Summary - Employment Relations,ACAS,1002978,3900000
"Department for Business, Innovation and Skills","Department for Business, Innovation and Skills",19/08/2010,Grants - Non Statutory - Current - Other,Universities and Skills Group - Learners,HIGHER EDUCATION FUNDING COUNCIL FOR ENGLAND,1004262,10000
"Department for Business, Innovation and Skills","Department for Business, Innovation and Skills",19/08/2010,Grants - Non Statutory - Current - Other,Universities and Skills Group - Learners,HIGHER EDUCATION FUNDING COUNCIL FOR ENGLAND,1004262,23990000
"Department for Business, Innovation and Skills","Department for Business, Innovation and Skills",23/08/2010,Media and Design Services,Universities and Skills Group - Higher Education,COI COMMUNICATIONS,1005101,68305.19
"Department for Business, Innovation and Skills","Department for Business, Innovation and Skills",26/08/2010,Media and Design Services,Universities and Skills Group - Higher Education,COI COMMUNICATIONS,1005372,68305.19
"Department for Business, Innovation and Skills","Department for Business, Innovation and Skills",27/08/2010,Air Fares  - Overseas (Programme),Business Group - Advanced Manufacturing Industries,NATIONAL RESEARCH COUNCIL CANADA,1005035,3337.12
"Department for Business, Innovation and Skills","Department for Business, Innovation and Skills",26/08/2010,Grants - Non Statutory - Current - Other,Business Group - Advanced Manufacturing Industries,ONE NORTH EAST,1005302,164886.95
"Department for Business, Innovation and Skills","Department for Business, Innovation and Skills",12/08/2010,Grants - Non Statutory - Current - Other,Business Group - Advanced Manufacturing Industries,ONE NORTH EAST,1004324,210852.29
"Department for Business, Innovation and Skills","Department for Business, Innovation and Skills",11/08/2010,Capital Grants - Other,Business Group - Advanced Manufacturing Industries,ONE NORTH EAST,1004255,430987.39
"Department for Business, Innovation and Skills","Department for Business, Innovation and Skills",26/08/2010,Capital Grants - Other,Business Group - Advanced Manufacturing Industries,ONE NORTH EAST,1005305,513141.64
"Department for Business, Innovation and Skills","Department for Business, Innovation and Skills",03/08/2010,Grants - Non Statutory - Current - Other,Business Group - Advanced Manufacturing Industries,SOUTH EAST ENGLAND DEVELOPMENT AGENCY,1003300,44410
"Department for Business, Innovation and Skills","Department for Business, Innovation and Skills",05/08/2010,Capital Grants - Other,Business Group - Life Sciences,STEVENAGE BIOSCIENCE PARK,1003494,284491
"Department for Business, Innovation and Skills","Department for Business, Innovation and Skills",27/08/2010,Capital Grants - Other,Business Group - Advanced Manufacturing Industries,SOUTH WEST OF ENGLAND REGIONAL DEVELOPMENT AGENCY,1005351,776984.22
"Department for Business, Innovation and Skills","Department for Business, Innovation and Skills",04/08/2010,Technical Advice,Fair Markets Group Summary - Employment Relations,WEIGHTMANS,1003403,1000
"Department for Business, Innovation and Skills","Department for Business, Innovation and Skills",24/08/2010,Additions - Enterprise Equity Investments,"Innovation, Enterprise & Better Regulation Executive - Enterprise Directorate",BERR EQUITY INVESTMENT PROGRAMMES (CAPITAL),1005153,300000
"Department for Business, Innovation and Skills","Department for Business, Innovation and Skills",20/08/2010,Grants - Statutory - Current - Other,Business Group - Advanced Manufacturing Industries,BROOK STREET (UK) LTD,1003994,503.6285
"Department for Business, Innovation and Skills","Department for Business, Innovation and Skills",31/08/2010,Grants - Statutory - Current - Other,Business Group - Advanced Manufacturing Industries,BROOK STREET (UK) LTD,1005410,503.6285
"Department for Business, Innovation and Skills","Department for Business, Innovation and Skills",26/08/2010,Grants - Statutory - Current - Other,Business Group - Advanced Manufacturing Industries,BROOK STREET (UK) LTD,1005099,503.6285
"Department for Business, Innovation and Skills","Department for Business, Innovation and Skills",03/08/2010,Hospitality - UK (Programme),"Innovation, Enterprise & Better Regulation Executive - Better Regulation Executive (BRE)",CITY INN WESTMINSTER,1002764,-404.2
"Department for Business, Innovation and Skills","Department for Business, Innovation and Skills",09/08/2010,Hospitality - UK (Programme),"Innovation, Enterprise & Better Regulation Executive - Better Regulation Executive (BRE)",BAXTERSTOREY LTD,1003818,-291.69375
"Department for Business, Innovation and Skills","Department for Business, Innovation and Skills",09/08/2010,Hospitality - UK (Programme),"Innovation, Enterprise & Better Regulation Executive - Better Regulation Executive (BRE)",BAXTERSTOREY LTD,1003818,-0.3525
"Department for Business, Innovation and Skills","Department for Business, Innovation and Skills",09/08/2010,Hospitality - UK (Programme),"Innovation, Enterprise & Better Regulation Executive - Better Regulation Executive (BRE)",BAXTERSTOREY LTD,1003833,881.83
"Department for Business, Innovation and Skills","Department for Business, Innovation and Skills",03/08/2010,Media and Design Services,"Innovation, Enterprise & Better Regulation Executive - Better Regulation Executive (BRE)",ENERGY DATA SERVICES LTD T/A PRECISE,1002788,653.48
"Department for Business, Innovation and Skills","Department for Business, Innovation and Skills",23/08/2010,Media and Design Services,"Innovation, Enterprise & Better Regulation Executive - Better Regulation Executive (BRE)",ENERGY DATA SERVICES LTD T/A PRECISE,1004827,1024.94
"Department for Business, Innovation and Skills","Department for Business, Innovation and Skills",03/08/2010,Media and Design Services,"Innovation, Enterprise & Better Regulation Executive - Better Regulation Executive (BRE)",ENERGY DATA SERVICES LTD T/A PRECISE,1002750,1510.13
"Department for Business, Innovation and Skills","Department for Business, Innovation and Skills",03/08/2010,Media and Design Services,"Innovation, Enterprise & Better Regulation Executive - Better Regulation Executive (BRE)",ENERGY DATA SERVICES LTD T/A PRECISE,1002759,2184.5
"Department for Business, Innovation and Skills","Department for Business, Innovation and Skills",12/08/2010,Conference and Exhibition Services (Programme),"Innovation, Enterprise & Better Regulation Executive - Better Regulation Executive (BRE)",UBM INFORMATION LTD,1004293,-9999.99
"Department for Business, Innovation and Skills","Department for Business, Innovation and Skills",12/08/2010,Conference and Exhibition Services (Programme),"Innovation, Enterprise & Better Regulation Executive - Better Regulation Executive (BRE)",UBM INFORMATION LTD,1004293,-9999.01
"Department for Business, Innovation and Skills","Department for Business, Innovation and Skills",12/08/2010,Conference and Exhibition Services (Programme),"Innovation, Enterprise & Better Regulation Executive - Better Regulation Executive (BRE)",UBM INFORMATION LTD,1004293,9999.01
"Department for Business, Innovation and Skills","Department for Business, Innovation and Skills",12/08/2010,Conference and Exhibition Services (Programme),"Innovation, Enterprise & Better Regulation Executive - Better Regulation Executive (BRE)",UBM INFORMATION LTD,1004293,9999.99
"Department for Business, Innovation and Skills","Department for Business, Innovation and Skills",12/08/2010,Conference and Exhibition Services (Programme),"Innovation, Enterprise & Better Regulation Executive - Better Regulation Executive (BRE)",UBM INFORMATION LTD,1004293,9999.99
"Department for Business, Innovation and Skills","Department for Business, Innovation and Skills",27/08/2010,Intangible Software clearing account,Finance & Commercial Group - Information and Workplace Strategies,LOGICA UK LTD,1005433,8794.875
"Department for Business, Innovation and Skills","Department for Business, Innovation and Skills",05/08/2010,Computer Equipment - Clearing,Finance & Commercial Group - Information and Workplace Strategies,FUJITSU SERVICES LTD,1002011,-20853.0305
"Department for Business, Innovation and Skills","Department for Business, Innovation and Skills",13/08/2010,Computer Equipment - Clearing,Finance & Commercial Group - Information and Workplace Strategies,FUJITSU SERVICES LTD,1003658,-11503.485
"Department for Business, Innovation and Skills","Department for Business, Innovation and Skills",13/08/2010,Computer Equipment - Clearing,Finance & Commercial Group - Information and Workplace Strategies,FUJITSU SERVICES LTD,1003658,-7925.8685
"Department for Business, Innovation and Skills","Department for Business, Innovation and Skills",19/08/2010,Computer Equipment - Clearing,Finance & Commercial Group - Information and Workplace Strategies,INSIGHT IT TRAINING LTD,1004758,3231.25
"Department for Business, Innovation and Skills","Department for Business, Innovation and Skills",13/08/2010,Computer Equipment - Clearing,Finance & Commercial Group - Information and Workplace Strategies,LOGICA UK LTD,1004445,7567
"Department for Business, Innovation and Skills","Department for Business, Innovation and Skills",13/08/2010,Computer Equipment - Clearing,Finance & Commercial Group - Information and Workplace Strategies,FUJITSU SERVICES LTD,1003658,7925.8685
"Department for Business, Innovation and Skills","Department for Business, Innovation and Skills",13/08/2010,Computer Equipment - Clearing,Finance & Commercial Group - Information and Workplace Strategies,FUJITSU SERVICES LTD,1003658,7925.8685
"Department for Business, Innovation and Skills","Department for Business, Innovation and Skills",13/08/2010,Computer Equipment - Clearing,Finance & Commercial Group - Information and Workplace Strategies,FUJITSU SERVICES LTD,1003658,11503.485
"Department for Business, Innovation and Skills","Department for Business, Innovation and Skills",13/08/2010,Computer Equipment - Clearing,Finance & Commercial Group - Information and Workplace Strategies,FUJITSU SERVICES LTD,1003658,11503.485
"Department for Business, Innovation and Skills","Department for Business, Innovation and Skills",31/08/2010,Computer Equipment - Clearing,Finance & Commercial Group - Information and Workplace Strategies,FUJITSU SERVICES LTD,1005506,11547.72
"Department for Business, Innovation and Skills","Department for Business, Innovation and Skills",12/08/2010,Computer Equipment - Clearing,Finance & Commercial Group - Information and Workplace Strategies,LOGICA UK LTD,1002966,13204.0625
"Department for Business, Innovation and Skills","Department for Business, Innovation and Skills",09/08/2010,Computer Equipment - Clearing,Finance & Commercial Group - Information and Workplace Strategies,METHODS CONSULTING LTD,1003902,18379.35
"Department for Business, Innovation and Skills","Department for Business, Innovation and Skills",11/08/2010,Computer Equipment - Clearing,Finance & Commercial Group - Information and Workplace Strategies,PARITY RESOURCES LTD,1003864,19125.945
"Department for Business, Innovation and Skills","Department for Business, Innovation and Skills",16/08/2010,Computer Equipment - Clearing,Finance & Commercial Group - Information and Workplace Strategies,FUJITSU SERVICES LTD,1004377,19975
"Department for Business, Innovation and Skills","Department for Business, Innovation and Skills",27/08/2010,Computer Equipment - Clearing,Finance & Commercial Group - Information and Workplace Strategies,LOGICA UK LTD,1005437,22661.53175
"Department for Business, Innovation and Skills","Department for Business, Innovation and Skills",06/08/2010,Computer Equipment - Clearing,Finance & Commercial Group - Information and Workplace Strategies,FUJITSU SERVICES LTD,1003707,23757.3015
"Department for Business, Innovation and Skills","Department for Business, Innovation and Skills",09/08/2010,Computer Equipment - Clearing,Finance & Commercial Group - Information and Workplace Strategies,METHODS CONSULTING LTD,1003912,25908.75
"Department for Business, Innovation and Skills","Department for Business, Innovation and Skills",27/08/2010,Computer Equipment - Clearing,Finance & Commercial Group - Information and Workplace Strategies,LOGICA UK LTD,1005437,74909.29325
"Department for Business, Innovation and Skills","Department for Business, Innovation and Skills",25/08/2010,Furniture F & F - Clearing,Finance & Commercial Group - Information and Workplace Strategies,SENATOR INTERNATIONAL LTD,1005209,940.188
"Department for Business, Innovation and Skills","Department for Business, Innovation and Skills",11/08/2010,Furniture F & F - Clearing,Finance & Commercial Group - Information and Workplace Strategies,CALL SYSTEMS TECHNOLOGY LTD T/A JTECH COMMUNICATIONS,1003586,4606
"Department for Business, Innovation and Skills","Department for Business, Innovation and Skills",11/08/2010,Furniture F & F - Clearing,Finance & Commercial Group - Information and Workplace Strategies,SENATOR INTERNATIONAL LTD,1004152,16156.25
"Department for Business, Innovation and Skills","Department for Business, Innovation and Skills",19/08/2010,Leased Buildings - Clearing,Finance & Commercial Group - Information and Workplace Strategies,COFELY LTD,1004242,-163695.4275
"Department for Business, Innovation and Skills","Department for Business, Innovation and Skills",23/08/2010,Leased Buildings - Clearing,Finance & Commercial Group - Information and Workplace Strategies,SALTASH ENTERPRISES LTD,1005039,-51750
"Department for Business, Innovation and Skills","Department for Business, Innovation and Skills",23/08/2010,Leased Buildings - Clearing,Finance & Commercial Group - Information and Workplace Strategies,SALTASH ENTERPRISES LTD,1005039,-46000
"Department for Business, Innovation and Skills","Department for Business, Innovation and Skills",09/08/2010,Leased Buildings - Clearing,Finance & Commercial Group - Information and Workplace Strategies,EC HARRIS LLP,1003630,-12093.653
"Department for Business, Innovation and Skills","Department for Business, Innovation and Skills",23/08/2010,Leased Buildings - Clearing,Finance & Commercial Group - Information and Workplace Strategies,ISS FACILITY SERVICES LTD T/A ISS PEGASUS SECURITY,1005016,582.471
"Department for Business, Innovation and Skills","Department for Business, Innovation and Skills",27/08/2010,Leased Buildings - Clearing,Finance & Commercial Group - Information and Workplace Strategies,BT CONFERENCING,1005424,646.25
"Department for Business, Innovation and Skills","Department for Business, Innovation and Skills",23/08/2010,Leased Buildings - Clearing,Finance & Commercial Group - Information and Workplace Strategies,EVOLUTION RESOURCE LTD,1005038,822.5
"Department for Business, Innovation and Skills","Department for Business, Innovation and Skills",23/08/2010,Leased Buildings - Clearing,Finance & Commercial Group - Information and Workplace Strategies,DRAKE A-V VIDEO LTD,1005020,1048.1
"Department for Business, Innovation and Skills","Department for Business, Innovation and Skills",19/08/2010,Leased Buildings - Clearing,Finance & Commercial Group - Information and Workplace Strategies,COFELY LTD,1004244,1071.13
"Department for Business, Innovation and Skills","Department for Business, Innovation and Skills",23/08/2010,Leased Buildings - Clearing,Finance & Commercial Group - Information and Workplace Strategies,ISS FACILITY SERVICES LTD T/A ISS PEGASUS SECURITY,1005017,1599.504
"Department for Business, Innovation and Skills","Department for Business, Innovation and Skills",23/08/2010,Leased Buildings - Clearing,Finance & Commercial Group - Information and Workplace Strategies,OFFICE PROJECTS LTD,1005047,3189.185
"Department for Business, Innovation and Skills","Department for Business, Innovation and Skills",10/08/2010,Leased Buildings - Clearing,Finance & Commercial Group - Information and Workplace Strategies,FCO SERVICES,1004202,4130.454
"Department for Business, Innovation and Skills","Department for Business, Innovation and Skills",23/08/2010,Leased Buildings - Clearing,Finance & Commercial Group - Information and Workplace Strategies,SALTASH ENTERPRISES LTD,1005039,5127.888
"Department for Business, Innovation and Skills","Department for Business, Innovation and Skills",06/08/2010,Leased Buildings - Clearing,Finance & Commercial Group - Information and Workplace Strategies,EC HARRIS LLP,1003629,5622.375
"Department for Business, Innovation and Skills","Department for Business, Innovation and Skills",06/08/2010,Leased Buildings - Clearing,Finance & Commercial Group - Information and Workplace Strategies,EC HARRIS LLP,1003634,5875
"Department for Business, Innovation and Skills","Department for Business, Innovation and Skills",23/08/2010,Leased Buildings - Clearing,Finance & Commercial Group - Information and Workplace Strategies,OFFICE PROJECTS LTD,1005048,7170.84875
"Department for Business, Innovation and Skills","Department for Business, Innovation and Skills",23/08/2010,Leased Buildings - Clearing,Finance & Commercial Group - Information and Workplace Strategies,OFFICE PROJECTS LTD,1005042,7592.4975
"Department for Business, Innovation and Skills","Department for Business, Innovation and Skills",23/08/2010,Leased Buildings - Clearing,Finance & Commercial Group - Information and Workplace Strategies,OFFICE PROJECTS LTD,1005045,8184.73275
"Department for Business, Innovation and Skills","Department for Business, Innovation and Skills",04/08/2010,Leased Buildings - Clearing,Finance & Commercial Group - Information and Workplace Strategies,EC HARRIS LLP,1003010,10907.7835
"Department for Business, Innovation and Skills","Department for Business, Innovation and Skills",11/08/2010,Leased Buildings - Clearing,Finance & Commercial Group - Information and Workplace Strategies,FCO SERVICES,1004250,11764.72275
"Department for Business, Innovation and Skills","Department for Business, Innovation and Skills",09/08/2010,Leased Buildings - Clearing,Finance & Commercial Group - Information and Workplace Strategies,EC HARRIS LLP,1003630,12093.653
"Department for Business, Innovation and Skills","Department for Business, Innovation and Skills",09/08/2010,Leased Buildings - Clearing,Finance & Commercial Group - Information and Workplace Strategies,EC HARRIS LLP,1003630,12356.5585
"Department for Business, Innovation and Skills","Department for Business, Innovation and Skills",23/08/2010,Leased Buildings - Clearing,Finance & Commercial Group - Information and Workplace Strategies,OFFICE PROJECTS LTD,1005045,15112.55625
"Department for Business, Innovation and Skills","Department for Business, Innovation and Skills",09/08/2010,Leased Buildings - Clearing,Finance & Commercial Group - Information and Workplace Strategies,EC HARRIS LLP,1003630,42028.3165
"Department for Business, Innovation and Skills","Department for Business, Innovation and Skills",23/08/2010,Leased Buildings - Clearing,Finance & Commercial Group - Information and Workplace Strategies,SALTASH ENTERPRISES LTD,1005039,46000
"Department for Business, Innovation and Skills","Department for Business, Innovation and Skills",23/08/2010,Leased Buildings - Clearing,Finance & Commercial Group - Information and Workplace Strategies,SALTASH ENTERPRISES LTD,1005039,47000
"Department for Business, Innovation and Skills","Department for Business, Innovation and Skills",23/08/2010,Leased Buildings - Clearing,Finance & Commercial Group - Information and Workplace Strategies,SALTASH ENTERPRISES LTD,1005039,51750
"Department for Business, Innovation and Skills","Department for Business, Innovation and Skills",19/08/2010,Leased Buildings - Clearing,Finance & Commercial Group - Information and Workplace Strategies,COFELY LTD,1004242,51823.2575
"Department for Business, Innovation and Skills","Department for Business, Innovation and Skills",23/08/2010,Leased Buildings - Clearing,Finance & Commercial Group - Information and Workplace Strategies,SALTASH ENTERPRISES LTD,1005039,52875
"Department for Business, Innovation and Skills","Department for Business, Innovation and Skills",19/08/2010,Leased Buildings - Clearing,Finance & Commercial Group - Information and Workplace Strategies,COFELY LTD,1004243,150420.6683
"Department for Business, Innovation and Skills","Department for Business, Innovation and Skills",19/08/2010,Leased Buildings - Clearing,Finance & Commercial Group - Information and Workplace Strategies,COFELY LTD,1004242,163695.4275
"Department for Business, Innovation and Skills","Department for Business, Innovation and Skills",19/08/2010,Leased Buildings - Clearing,Finance & Commercial Group - Information and Workplace Strategies,COFELY LTD,1004242,167254.0238
"Department for Business, Innovation and Skills","Department for Business, Innovation and Skills",23/08/2010,Leased Buildings - Clearing,Finance & Commercial Group - Information and Workplace Strategies,OFFICE PROJECTS LTD,1005043,188000
"Department for Business, Innovation and Skills","Department for Business, Innovation and Skills",23/08/2010,Leased Buildings - Clearing,Finance & Commercial Group - Information and Workplace Strategies,OFFICE PROJECTS LTD,1005043,211167.3575
"Department for Business, Innovation and Skills","Department for Business, Innovation and Skills",06/08/2010,Recoverable VAT Input,Corporate Payments,UK INTELLECTUAL PROPERTY OFFICE,1003738,152496.04
"Department for Business, Innovation and Skills","Department for Business, Innovation and Skills",06/08/2010,Recoverable VAT Input,Corporate Payments,UK TRADE & INVESTMENT,1003741,532705.07
"Department for Business, Innovation and Skills","Department for Business, Innovation and Skills",06/08/2010,Recoverable VAT Input,Corporate Payments,OPG COMPANIES HOUSE [40004],1003737,830333.68
"Department for Business, Innovation and Skills","Department for Business, Innovation and Skills",06/08/2010,Recoverable VAT Input,Corporate Payments,SKILLS FUNDING AGENCY,1003742,836834.52
"Department for Business, Innovation and Skills","Department for Business, Innovation and Skills",06/08/2010,Recoverable VAT Input,Corporate Payments,THE INSOLVENCY SERVICE,1003740,1024797.87
"Department for Business, Innovation and Skills","Department for Business, Innovation and Skills",06/08/2010,Recoverable VAT Input,Corporate Payments,NATIONAL MEASUREMENT OFFICE,1003739,1645537.43
"Department for Business, Innovation and Skills","Department for Business, Innovation and Skills",13/08/2010,GPC New Procedures,Corporate Payments,BARCLAYS BANK PLC,1004478,4957.61
"Department for Business, Innovation and Skills","Department for Business, Innovation and Skills",13/08/2010,GPC New Procedures,Finance & Commercial Group - Finance Group,BARCLAYS BANK PLC,1004480,44922.21
"Department for Business, Innovation and Skills","Department for Business, Innovation and Skills",13/08/2010,GPC New Procedures,Finance & Commercial Group - Finance Group,BARCLAYS BANK PLC,1004479,73749.3
"Department for Business, Innovation and Skills","Department for Business, Innovation and Skills",19/08/2010,Payment-Recovery of Overpayment re Exits,"Legal, People & Communications Group - HRCM - Human Resources and Change Management Directorate",CABINET OFFICE,1004856,1410.99
"Department for Business, Innovation and Skills","Department for Business, Innovation and Skills",19/08/2010,Payment-Recovery of Overpayment re Exits,"Legal, People & Communications Group - HRCM - Human Resources and Change Management Directorate",CABINET OFFICE,1004858,1780.33
"Department for Business, Innovation and Skills","Department for Business, Innovation and Skills",19/08/2010,Payment-Recovery of Overpayment re Exits,"Legal, People & Communications Group - HRCM - Human Resources and Change Management Directorate",CABINET OFFICE,1004859,2675.74
"Department for Business, Innovation and Skills","Department for Business, Innovation and Skills",19/08/2010,Payment-Recovery of Overpayment re Exits,"Legal, People & Communications Group - HRCM - Human Resources and Change Management Directorate",CABINET OFFICE,1004854,3545.11
"Department for Business, Innovation and Skills","Department for Business, Innovation and Skills",19/08/2010,Payment-Recovery of Overpayment re Exits,"Legal, People & Communications Group - HRCM - Human Resources and Change Management Directorate",CABINET OFFICE,1004861,180117
"Department for Business, Innovation and Skills","Department for Business, Innovation and Skills",19/08/2010,Payment-Recovery of Overpayment re Exits,"Legal, People & Communications Group - HRCM - Human Resources and Change Management Directorate",CABINET OFFICE,1004860,600327.54
"Department for Business, Innovation and Skills","Department for Business, Innovation and Skills",11/08/2010,Payments to Barclays for Carlson Wagonlit Travel Contract,Finance & Commercial Group - Finance Group,BANNER BUSINESS SERVICES LTD,1004251,-1087.97
"Department for Business, Innovation and Skills","Department for Business, Innovation and Skills",05/08/2010,Payments to Barclays for Carlson Wagonlit Travel Contract,Finance & Commercial Group - Finance Group,CARLSON WAGONLIT TRAVEL UK LTD,1003344,579.3455
"Department for Business, Innovation and Skills","Department for Business, Innovation and Skills",11/08/2010,Payments to Barclays for Carlson Wagonlit Travel Contract,Finance & Commercial Group - Finance Group,BANNER BUSINESS SERVICES LTD,1004251,1087.97
"Department for Business, Innovation and Skills","Department for Business, Innovation and Skills",11/08/2010,Payments to Barclays for Carlson Wagonlit Travel Contract,Finance & Commercial Group - Finance Group,BANNER BUSINESS SERVICES LTD,1004251,1278.36475
"Department for Business, Innovation and Skills","Department for Business, Innovation and Skills",17/08/2010,Payments to Barclays for Carlson Wagonlit Travel Contract,Finance & Commercial Group - Finance Group,CARLSON WAGONLIT TRAVEL UK LTD,1004634,13763.77
"Department for Business, Innovation and Skills","Department for Business, Innovation and Skills",05/08/2010,Payments to Barclays for Carlson Wagonlit Travel Contract,Finance & Commercial Group - Finance Group,CARLSON WAGONLIT TRAVEL UK LTD,1003344,19185.07
"Department for Business, Innovation and Skills","Department for Business, Innovation and Skills",13/08/2010,Payments to Barclays for Carlson Wagonlit Travel Contract,Finance & Commercial Group - Finance Group,BARCLAYS BANK PLC,1004481,68380.59
"Department for Business, Innovation and Skills","Department for Business, Innovation and Skills",05/08/2010,Payments to Redfern for Rail Travel Contract,Finance & Commercial Group - Finance Group,REDFERN TRAVEL LTD,1003407,6997.6
"Department for Business, Innovation and Skills","Department for Business, Innovation and Skills",05/08/2010,Payments to Redfern for Rail Travel Contract,Finance & Commercial Group - Finance Group,REDFERN TRAVEL LTD,1003405,39174.18
"Department for Business, Innovation and Skills","Department for Business, Innovation and Skills",11/08/2010,Payments to Expotel for Hotel Costs Contract,Finance & Commercial Group - Finance Group,EXPOTEL HOTEL RESERVATIONS LTD,1004257,-7222.45475
"Department for Business, Innovation and Skills","Department for Business, Innovation and Skills",17/08/2010,Payments to Expotel for Hotel Costs Contract,Finance & Commercial Group - Finance Group,EXPOTEL HOTEL RESERVATIONS LTD,1004619,5751.42525
"Department for Business, Innovation and Skills","Department for Business, Innovation and Skills",11/08/2010,Payments to Expotel for Hotel Costs Contract,Finance & Commercial Group - Finance Group,EXPOTEL HOTEL RESERVATIONS LTD,1004257,7222.45475
"Department for Business, Innovation and Skills","Department for Business, Innovation and Skills",11/08/2010,Payments to Expotel for Hotel Costs Contract,Finance & Commercial Group - Finance Group,EXPOTEL HOTEL RESERVATIONS LTD,1004257,7222.45475
"Department for Business, Innovation and Skills","Department for Business, Innovation and Skills",05/08/2010,Payments to Expotel for Hotel Costs Contract,Finance & Commercial Group - Finance Group,EXPOTEL HOTEL RESERVATIONS LTD,1003352,8504.039
"Department for Business, Innovation and Skills","Department for Business, Innovation and Skills",24/08/2010,Payments to Expotel for Hotel Costs Contract,Finance & Commercial Group - Finance Group,EXPOTEL HOTEL RESERVATIONS LTD,1005180,9657.17225
"Department for Business, Innovation and Skills","Department for Business, Innovation and Skills",25/08/2010,Sundry Debtors,Universities and Skills Group - Learners,DEPARTMENT FOR EMPLOYMENT AND LEARNING,1005208,5808.92
"Department for Business, Innovation and Skills","Department for Business, Innovation and Skills",25/08/2010,Sundry Debtors,Universities and Skills Group - Learners,STUDENT AWARDS AGENCY FOR SCOTLAND (SAAS),1005207,21940.77
"Department for Business, Innovation and Skills","Department for Business, Innovation and Skills",18/08/2010,UK Advances,Corporate Payments,"Personal Expense, Name Witheld",10272307,600
"Department for Business, Innovation and Skills","Department for Business, Innovation and Skills",02/08/2010,Detached Duty Advances,Corporate Payments,"Personal Expense, Name Witheld",10271896,670
"Department for Business, Innovation and Skills","Department for Business, Innovation and Skills",26/08/2010,BIS Tax Deductions,Corporate Payments,"Personal Expense, Name Witheld",10272451,-54.11
"Department for Business, Innovation and Skills","Department for Business, Innovation and Skills",26/08/2010,BIS Tax Deductions,Corporate Payments,"Personal Expense, Name Witheld",10272459,-48.2
"Department for Business, Innovation and Skills","Department for Business, Innovation and Skills",26/08/2010,BIS Tax Deductions,Corporate Payments,"Personal Expense, Name Witheld",10272457,-45.99
"Department for Business, Innovation and Skills","Department for Business, Innovation and Skills",26/08/2010,BIS Tax Deductions,Corporate Payments,"Personal Expense, Name Witheld",10272449,-38.92
"Department for Business, Innovation and Skills","Department for Business, Innovation and Skills",26/08/2010,BIS Tax Deductions,Corporate Payments,"Personal Expense, Name Witheld",10272458,-37.72
"Department for Business, Innovation and Skills","Department for Business, Innovation and Skills",26/08/2010,BIS Tax Deductions,Corporate Payments,"Personal Expense, Name Witheld",10272456,-37.43
"Department for Business, Innovation and Skills","Department for Business, Innovation and Skills",26/08/2010,BIS Tax Deductions,Corporate Payments,"Personal Expense, Name Witheld",10272452,-37.28
"Department for Business, Innovation and Skills","Department for Business, Innovation and Skills",26/08/2010,BIS Tax Deductions,Corporate Payments,"Personal Expense, Name Witheld",10272450,-34.6
"Department for Business, Innovation and Skills","Department for Business, Innovation and Skills",26/08/2010,BIS Tax Deductions,Corporate Payments,"Personal Expense, Name Witheld",10272447,-33.55
"Department for Business, Innovation and Skills","Department for Business, Innovation and Skills",26/08/2010,BIS Tax Deductions,Corporate Payments,"Personal Expense, Name Witheld",10272453,-31
"Department for Business, Innovation and Skills","Department for Business, Innovation and Skills",26/08/2010,BIS Tax Deductions,Corporate Payments,"Personal Expense, Name Witheld",10272448,-30.92
"Department for Business, Innovation and Skills","Department for Business, Innovation and Skills",26/08/2010,BIS Tax Deductions,Corporate Payments,"Personal Expense, Name Witheld",10272443,-28.68
"Department for Business, Innovation and Skills","Department for Business, Innovation and Skills",26/08/2010,BIS Tax Deductions,Corporate Payments,"Personal Expense, Name Witheld",10272455,-23.2
"Department for Business, Innovation and Skills","Department for Business, Innovation and Skills",26/08/2010,BIS Tax Deductions,Corporate Payments,"Personal Expense, Name Witheld",10272445,-19.16
"Department for Business, Innovation and Skills","Department for Business, Innovation and Skills",26/08/2010,BIS Tax Deductions,Corporate Payments,"Personal Expense, Name Witheld",10272454,-13.45
"Department for Business, Innovation and Skills","Department for Business, Innovation and Skills",26/08/2010,BIS Tax Deductions,Corporate Payments,"Personal Expense, Name Witheld",10272461,-10.01
"Department for Business, Innovation and Skills","Department for Business, Innovation and Skills",26/08/2010,BIS Tax Deductions,Corporate Payments,"Personal Expense, Name Witheld",10272460,-7.01
"Department for Business, Innovation and Skills","Department for Business, Innovation and Skills",20/08/2010,BIS Tax Deductions,Corporate Payments,HM REVENUE & CUSTOMS,1004916,542.62
"Department for Business, Innovation and Skills","Department for Business, Innovation and Skills",16/08/2010,BIS Non Cash Rewards Tax and NI Contributions,"Legal, People & Communications Group - HRCM - Human Resources and Change Management Directorate",HM REVENUE & CUSTOMS,1004475,18438.54
"Department for Business, Innovation and Skills","Department for Business, Innovation and Skills",26/08/2010,Board Members Tax Deductions (Suspense Account),Corporate Payments,"Personal Expense, Name Witheld",10272364,-902.8
"Department for Business, Innovation and Skills","Department for Business, Innovation and Skills",26/08/2010,Board Members Tax Deductions (Suspense Account),Corporate Payments,"Personal Expense, Name Witheld",10272363,-600.6
"Department for Business, Innovation and Skills","Department for Business, Innovation and Skills",26/08/2010,Board Members Tax Deductions (Suspense Account),Corporate Payments,"Personal Expense, Name Witheld",10272364,-411.6
"Department for Business, Innovation and Skills","Department for Business, Innovation and Skills",26/08/2010,Board Members Tax Deductions (Suspense Account),Corporate Payments,"Personal Expense, Name Witheld",10272363,-300.2
"Department for Business, Innovation and Skills","Department for Business, Innovation and Skills",26/08/2010,Board Members Tax Deductions (Suspense Account),Corporate Payments,"Personal Expense, Name Witheld",10272363,-244.06
"Department for Business, Innovation and Skills","Department for Business, Innovation and Skills",31/08/2010,Board Members Tax Deductions (Suspense Account),Corporate Payments,"Personal Expense, Name Witheld",10272549,1104.1
"Department for Business, Innovation and Skills","Department for Business, Innovation and Skills",20/08/2010,Board Members Tax Deductions (Suspense Account),Corporate Payments,HM REVENUE & CUSTOMS,1004883,11227.4
"Department for Business, Innovation and Skills","Department for Business, Innovation and Skills",26/08/2010,Board Members National Insurance Deductions (Suspense Account),Corporate Payments,"Personal Expense, Name Witheld",10272363,-601.43
"Department for Business, Innovation and Skills","Department for Business, Innovation and Skills",26/08/2010,Board Members National Insurance Deductions (Suspense Account),Corporate Payments,"Personal Expense, Name Witheld",10272364,-423.99
"Department for Business, Innovation and Skills","Department for Business, Innovation and Skills",26/08/2010,Board Members National Insurance Deductions (Suspense Account),Corporate Payments,"Personal Expense, Name Witheld",10272364,-131.61
"Department for Business, Innovation and Skills","Department for Business, Innovation and Skills",20/08/2010,Board Members National Insurance Deductions (Suspense Account),Corporate Payments,HM REVENUE & CUSTOMS,1004881,4344.69
"Department for Business, Innovation and Skills","Department for Business, Innovation and Skills",26/08/2010,PNB Funding,Corporate Payments,"Personal Expense, Name Witheld",10272364,857.5
"Department for Business, Innovation and Skills","Department for Business, Innovation and Skills",26/08/2010,PNB Funding,Corporate Payments,"Personal Expense, Name Witheld",10272363,3604.61
"Department for Business, Innovation and Skills","Department for Business, Innovation and Skills",03/08/2010,Recoveries Account,Corporate Payments,UK TRADE & INVESTMENT,1003348,1175
"Department for Business, Innovation and Skills","Department for Business, Innovation and Skills",31/08/2010,Recoveries Account,Corporate Payments,UK TRADE & INVESTMENT,1005560,1175
"Department for Business, Innovation and Skills","Department for Business, Innovation and Skills",02/08/2010,Cash CFERs paid over to HMT,Corporate Payments,STATES OF JERSEY,976151,361001
"Department for Business, Innovation and Skills","Department for Business, Innovation and Skills",31/08/2010,Cash CFERs paid over to HMT,Corporate Payments,DEPARTMENT OF FINANCE AND PERSONNEL (NORTHERN IRELAND),1005573,4544268.32
"Department for Business, Innovation and Skills","Department for Business, Innovation and Skills",31/08/2010,Cash CFERs paid over to HMT,Corporate Payments,CONSOLIDATED FUND ACCOUNT 6622,1005574,21073343.22
"Department for Business, Innovation and Skills","Department for Business, Innovation and Skills",31/08/2010,Cash CFERs paid over to HMT,Corporate Payments,CONSOLIDATED FUND ACCOUNT 6622,1005575,64382388.46
"Department for Business, Innovation and Skills","Department for Business, Innovation and Skills",16/08/2010,Grants - Statutory - Current - Other,Business Group - Advanced Manufacturing Industries,CENEX,1004459,38428.39
"Department for Business, Innovation and Skills","Department for Business, Innovation and Skills",06/08/2010,On-Line Databases (Programme),Fair Markets Group Summary - Consumer and Competition Policy,ITSA LTD,1003743,1128
"Department for Business, Innovation and Skills","Department for Business, Innovation and Skills",12/08/2010,Grants - Non Statutory - Current - Other,Fair Markets Group Summary - Consumer and Competition Policy,BRISTOL CITY COUNCIL,1004319,128367.64
"Department for Business, Innovation and Skills","Department for Business, Innovation and Skills",17/08/2010,Grants - Non Statutory - Current - Other,Fair Markets Group Summary - Consumer and Competition Policy,REDCAR & CLEVELAND BOROUGH COUNCIL,1004640,116314.94
"Department for Business, Innovation and Skills","Department for Business, Innovation and Skills",05/08/2010,Grants - Non Statutory - Current - Other,Fair Markets Group Summary - Consumer and Competition Policy,CARDIFF COUNTY COUNCIL,1003599,129199.16
"Department for Business, Innovation and Skills","Department for Business, Innovation and Skills",31/08/2010,Grants - Non Statutory - Current - Other,Fair Markets Group Summary - Consumer and Competition Policy,CARDIFF COUNTY COUNCIL,1005525,131194.66
"Department for Business, Innovation and Skills","Department for Business, Innovation and Skills",23/08/2010,Grants - Non Statutory - Current - Other,Fair Markets Group Summary - Consumer and Competition Policy,NOTTINGHAM CITY COUNCIL,1004999,71217
"Department for Business, Innovation and Skills","Department for Business, Innovation and Skills",13/08/2010,Grants - Non Statutory - Current - Other,Fair Markets Group Summary - Consumer and Competition Policy,GLASGOW CITY COUNCIL,1004436,115543.03
"Department for Business, Innovation and Skills","Department for Business, Innovation and Skills",24/08/2010,Purchase of Completed Research,Business Group - Information Economy,BRITISH STANDARDS INSTITUTION (BSI),1005182,10560
"Department for Business, Innovation and Skills","Department for Business, Innovation and Skills",19/08/2010,Sponsorship Support,Business Group - Information Economy,INDEPENDENT NETWORKS CO-OPERATIVE ASSOCIATION LTD,1004837,33670.37
"Department for Business, Innovation and Skills","Department for Business, Innovation and Skills",04/08/2010,Grant in Aid - Current -Other,Fair Markets Group Summary - Corporate Law and Governance,THE FINANCIAL REPORTING COUNCIL,1003482,300000
"Department for Business, Innovation and Skills","Department for Business, Innovation and Skills",09/08/2010,Grant in Aid - Current -Other,Fair Markets Group Summary - Corporate Law and Governance,THE FINANCIAL REPORTING COUNCIL,1003790,300000
"Department for Business, Innovation and Skills","Department for Business, Innovation and Skills",17/08/2010,Audit Fees (Programme),Fair Markets Group Summary - Consumer and Competition Policy,NATIONAL AUDIT OFFICE,1004657,17000
"Department for Business, Innovation and Skills","Department for Business, Innovation and Skills",25/08/2010,Economic Consultancy and Research,"Innovation, Enterprise & Better Regulation Executive - Innovation",ECONOMIC AND SOCIAL RESEARCH COUNCIL ESRC,1005220,62500
"Department for Business, Innovation and Skills","Department for Business, Innovation and Skills",05/08/2010,Business Management Advice,"Innovation, Enterprise & Better Regulation Executive - Innovation",JERA CONSULTING LTD,1003588,-685.25
"Department for Business, Innovation and Skills","Department for Business, Innovation and Skills",05/08/2010,Business Management Advice,"Innovation, Enterprise & Better Regulation Executive - Innovation",JERA CONSULTING LTD,1003588,658.25
"Department for Business, Innovation and Skills","Department for Business, Innovation and Skills",05/08/2010,Business Management Advice,"Innovation, Enterprise & Better Regulation Executive - Innovation",JERA CONSULTING LTD,1003588,685.25
"Department for Business, Innovation and Skills","Department for Business, Innovation and Skills",05/08/2010,Business Management Advice,"Innovation, Enterprise & Better Regulation Executive - Innovation",JERA CONSULTING LTD,1003588,19564.29
"Department for Business, Innovation and Skills","Department for Business, Innovation and Skills",27/08/2010,Financial Advice and Services,"Innovation, Enterprise & Better Regulation Executive - Innovation",CAPITAL FOR ENTERPRISE LTD,1005365,14205
"Department for Business, Innovation and Skills","Department for Business, Innovation and Skills",12/08/2010,Outsourced Technical Support (Programme),SCIENCE & RESEARCH GROUP - UK Space Agency,CLAIR PASSELLE,1004344,500
"Department for Business, Innovation and Skills","Department for Business, Innovation and Skills",26/08/2010,Outsourced Technical Support (Programme),SCIENCE & RESEARCH GROUP - UK Space Agency,CLAIR PASSELLE,1005277,1500
"Department for Business, Innovation and Skills","Department for Business, Innovation and Skills",19/08/2010,Outsourced Technical Support (Programme),SCIENCE & RESEARCH GROUP - UK Space Agency,CLAIR PASSELLE,1004781,2000
"Department for Business, Innovation and Skills","Department for Business, Innovation and Skills",12/08/2010,Printing (Programme),SCIENCE & RESEARCH GROUP - UK Space Agency,PROMOTIONAL LOGISTICS LTD,1004273,-4588.5
"Department for Business, Innovation and Skills","Department for Business, Innovation and Skills",02/08/2010,Printing (Programme),SCIENCE & RESEARCH GROUP - UK Space Agency,LYNN HILTON PHOTOGRAPHY,1003221,522
"Department for Business, Innovation and Skills","Department for Business, Innovation and Skills",16/08/2010,Printing (Programme),SCIENCE & RESEARCH GROUP - UK Space Agency,PROMOTIONAL LOGISTICS LTD,1004274,1265.1
"Department for Business, Innovation and Skills","Department for Business, Innovation and Skills",12/08/2010,Printing (Programme),SCIENCE & RESEARCH GROUP - UK Space Agency,PROMOTIONAL LOGISTICS LTD,1004273,4488.75
"Department for Business, Innovation and Skills","Department for Business, Innovation and Skills",12/08/2010,Printing (Programme),SCIENCE & RESEARCH GROUP - UK Space Agency,PROMOTIONAL LOGISTICS LTD,1004273,4588.5
"Department for Business, Innovation and Skills","Department for Business, Innovation and Skills",02/08/2010,Printing (Programme),SCIENCE & RESEARCH GROUP - UK Space Agency,FOLIO CREATIVE COMMUNICATION,1003247,6120
"Department for Business, Innovation and Skills","Department for Business, Innovation and Skills",23/08/2010,Research & Development Expenditure (Programme),SCIENCE & RESEARCH GROUP - UK Space Agency,OXFORD ECONOMICS LTD,1005024,18667
"Department for Business, Innovation and Skills","Department for Business, Innovation and Skills",10/08/2010,Outsourced Technical Support (Programme),SCIENCE & RESEARCH GROUP - UK Space Agency,EOCI,1003971,1424.58
"Department for Business, Innovation and Skills","Department for Business, Innovation and Skills",27/08/2010,Outsourced Technical Support (Programme),SCIENCE & RESEARCH GROUP - UK Space Agency,VENTURE THINKING LTD,1003304,1500
"Department for Business, Innovation and Skills","Department for Business, Innovation and Skills",03/08/2010,Outsourced Technical Support (Programme),SCIENCE & RESEARCH GROUP - UK Space Agency,GRAHAM THOMAS CONSULTANCY,1003293,2179.31
"Department for Business, Innovation and Skills","Department for Business, Innovation and Skills",02/08/2010,Outsourced Technical Support (Programme),SCIENCE & RESEARCH GROUP - UK Space Agency,RICHARD TURNER CONSULTANTS LTD,1003249,3600
"Department for Business, Innovation and Skills","Department for Business, Innovation and Skills",20/08/2010,Publications (Programme),SCIENCE & RESEARCH GROUP - UK Space Agency,BOFFIN MEDIA,1004928,3375
"Department for Business, Innovation and Skills","Department for Business, Innovation and Skills",20/08/2010,Publications (Programme),SCIENCE & RESEARCH GROUP - UK Space Agency,BOFFIN MEDIA,1004924,4747
"Department for Business, Innovation and Skills","Department for Business, Innovation and Skills",02/08/2010,Conference and Exhibition Services (Programme),SCIENCE & RESEARCH GROUP - UK Space Agency,SPOILT FOR CHOICE LTD,1003227,1435.5
"Department for Business, Innovation and Skills","Department for Business, Innovation and Skills",18/08/2010,Grant in Aid - Current -Other,"Innovation, Enterprise & Better Regulation Executive - Innovation",DESIGN COUNCIL,1004443,500000
"Department for Business, Innovation and Skills","Department for Business, Innovation and Skills",12/08/2010,Additions - Enterprise Equity Investments,"Innovation, Enterprise & Better Regulation Executive - Enterprise Directorate",BERR EQUITY INVESTMENT PROGRAMMES (CAPITAL),1004356,-97500
"Department for Business, Innovation and Skills","Department for Business, Innovation and Skills",12/08/2010,Additions - Enterprise Equity Investments,"Innovation, Enterprise & Better Regulation Executive - Enterprise Directorate",BERR EQUITY INVESTMENT PROGRAMMES (CAPITAL),1004356,12000
"Department for Business, Innovation and Skills","Department for Business, Innovation and Skills",04/08/2010,Additions - Enterprise Equity Investments,"Innovation, Enterprise & Better Regulation Executive - Enterprise Directorate",BERR EQUITY INVESTMENT PROGRAMMES (CAPITAL),1003458,12000
"Department for Business, Innovation and Skills","Department for Business, Innovation and Skills",03/08/2010,Additions - Enterprise Equity Investments,"Innovation, Enterprise & Better Regulation Executive - Enterprise Directorate",BERR EQUITY INVESTMENT PROGRAMMES (CAPITAL),1003358,62667
"Department for Business, Innovation and Skills","Department for Business, Innovation and Skills",12/08/2010,Additions - Enterprise Equity Investments,"Innovation, Enterprise & Better Regulation Executive - Enterprise Directorate",BERR EQUITY INVESTMENT PROGRAMMES (CAPITAL),1004356,85500
"Department for Business, Innovation and Skills","Department for Business, Innovation and Skills",31/08/2010,Additions - Enterprise Equity Investments,"Innovation, Enterprise & Better Regulation Executive - Enterprise Directorate",BERR EQUITY INVESTMENT PROGRAMMES (CAPITAL),1005564,90000
"Department for Business, Innovation and Skills","Department for Business, Innovation and Skills",12/08/2010,Additions - Enterprise Equity Investments,"Innovation, Enterprise & Better Regulation Executive - Enterprise Directorate",BERR EQUITY INVESTMENT PROGRAMMES (CAPITAL),1004356,97500
"Department for Business, Innovation and Skills","Department for Business, Innovation and Skills",24/08/2010,Additions - Enterprise Equity Investments,"Innovation, Enterprise & Better Regulation Executive - Enterprise Directorate",BERR EQUITY INVESTMENT PROGRAMMES (CAPITAL),1005154,540000
"Department for Business, Innovation and Skills","Department for Business, Innovation and Skills",02/08/2010,Telephone Helpline Services,Fair Markets Group Summary - Employment Relations,COI COMMUNICATIONS,1002985,71701.84875
"Department for Business, Innovation and Skills","Department for Business, Innovation and Skills",11/08/2010,Grants - Non Statutory - Current - Other,Fair Markets Group Summary - Consumer and Competition Policy,North Lanarkshire Council,1004286,15467.2
"Department for Business, Innovation and Skills","Department for Business, Innovation and Skills",12/08/2010,Grants - Non Statutory - Current - Other,Fair Markets Group Summary - Consumer and Competition Policy,NEWPORT CITY COUNCIL,1004330,63589.31
"Department for Business, Innovation and Skills","Department for Business, Innovation and Skills",03/08/2010,Grants - Non Statutory - Current - Other,Fair Markets Group Summary - Consumer and Competition Policy,SOLIHULL METROPOLITAN BOROUGH COUNCIL,1003332,69150.01
"Department for Business, Innovation and Skills","Department for Business, Innovation and Skills",24/08/2010,Grants - Non Statutory - Current - Other,Fair Markets Group Summary - Consumer and Competition Policy,TRADING STANDARDS INSTITUTE (TSI),1005124,20713.13
"Department for Business, Innovation and Skills","Department for Business, Innovation and Skills",31/08/2010,Grants - Non Statutory - Current - Other,Fair Markets Group Summary - Consumer and Competition Policy,TRADING STANDARDS INSTITUTE (TSI),1005486,39887.74
"Department for Business, Innovation and Skills","Department for Business, Innovation and Skills",31/08/2010,Grants - Non Statutory - Current - Other,Fair Markets Group Summary - Consumer and Competition Policy,TRADING STANDARDS INSTITUTE (TSI),1005486,56046.56
"Department for Business, Innovation and Skills","Department for Business, Innovation and Skills",31/08/2010,Grants - Non Statutory - Current - Other,Fair Markets Group Summary - Consumer and Competition Policy,TRADING STANDARDS INSTITUTE (TSI),1005486,56250
"Department for Business, Innovation and Skills","Department for Business, Innovation and Skills",19/08/2010,Cash Expenditure During the Year - EFG,"Innovation, Enterprise & Better Regulation Executive - Enterprise Directorate",EFG PAYMENTS,1004810,3022.5
"Department for Business, Innovation and Skills","Department for Business, Innovation and Skills",19/08/2010,Cash Expenditure During the Year - EFG,"Innovation, Enterprise & Better Regulation Executive - Enterprise Directorate",EFG PAYMENTS,1004810,3217.5
"Department for Business, Innovation and Skills","Department for Business, Innovation and Skills",19/08/2010,Cash Expenditure During the Year - EFG,"Innovation, Enterprise & Better Regulation Executive - Enterprise Directorate",EFG PAYMENTS,1004810,13334.51
"Department for Business, Innovation and Skills","Department for Business, Innovation and Skills",19/08/2010,Cash Expenditure During the Year - EFG,"Innovation, Enterprise & Better Regulation Executive - Enterprise Directorate",EFG PAYMENTS,1004810,22956.78
"Department for Business, Innovation and Skills","Department for Business, Innovation and Skills",19/08/2010,Cash Expenditure During the Year - EFG,"Innovation, Enterprise & Better Regulation Executive - Enterprise Directorate",EFG PAYMENTS,1004810,56628.56
"Department for Business, Innovation and Skills","Department for Business, Innovation and Skills",19/08/2010,Cash Expenditure During the Year - EFG,"Innovation, Enterprise & Better Regulation Executive - Enterprise Directorate",EFG PAYMENTS,1004810,86269.28
"Department for Business, Innovation and Skills","Department for Business, Innovation and Skills",19/08/2010,Cash Expenditure During the Year - EFG,"Innovation, Enterprise & Better Regulation Executive - Enterprise Directorate",EFG PAYMENTS,1004810,100871.44
"Department for Business, Innovation and Skills","Department for Business, Innovation and Skills",19/08/2010,Cash Expenditure During the Year - EFG,"Innovation, Enterprise & Better Regulation Executive - Enterprise Directorate",EFG PAYMENTS,1004810,101391.84
"Department for Business, Innovation and Skills","Department for Business, Innovation and Skills",19/08/2010,Cash Expenditure During the Year - EFG,"Innovation, Enterprise & Better Regulation Executive - Enterprise Directorate",EFG PAYMENTS,1004810,209682.56
"Department for Business, Innovation and Skills","Department for Business, Innovation and Skills",19/08/2010,Cash Expenditure During the Year - EFG,"Innovation, Enterprise & Better Regulation Executive - Enterprise Directorate",EFG PAYMENTS,1004810,430323.96
"Department for Business, Innovation and Skills","Department for Business, Innovation and Skills",19/08/2010,Cash Expenditure During the Year - EFG,"Innovation, Enterprise & Better Regulation Executive - Enterprise Directorate",EFG PAYMENTS,1004810,615178.5
"Department for Business, Innovation and Skills","Department for Business, Innovation and Skills",03/08/2010,Additions - Enterprise Equity Investments,"Innovation, Enterprise & Better Regulation Executive - Enterprise Directorate",BERR EQUITY INVESTMENT PROGRAMMES (CAPITAL),1003360,14583.33
"Department for Business, Innovation and Skills","Department for Business, Innovation and Skills",09/08/2010,Conference and Exhibition Services (Programme),Fair Markets Group Summary - Employment Relations,HM REVENUE & CUSTOMS,990606,20000
"Department for Business, Innovation and Skills","Department for Business, Innovation and Skills",06/08/2010,Purchase of  Advertising and Publicity (Programme),Fair Markets Group Summary - Employment Relations,BOUNTY UK LTD,1003638,9350
"Department for Business, Innovation and Skills","Department for Business, Innovation and Skills",27/08/2010,Outsourced Programme Management Services,Universities and Skills Group - Further Education,CAPGEMINI UK plc,1005369,33928.125
"Department for Business, Innovation and Skills","Department for Business, Innovation and Skills",11/08/2010,Grants - Non Statutory - Current - Other,Universities and Skills Group - Further Education,STANDARDS VERIFICATION UK LTD,1004194,38816
"Department for Business, Innovation and Skills","Department for Business, Innovation and Skills",24/08/2010,Grants - Non Statutory - Current - Other,Universities and Skills Group - Further Education,STANDARDS VERIFICATION UK LTD,1005140,43366
"Department for Business, Innovation and Skills","Department for Business, Innovation and Skills",09/08/2010,Grants - Non Statutory - Current - Other,Universities and Skills Group - Further Education,INSTITUTE FOR LEARNING (PCET),1003849,255360
"Department for Business, Innovation and Skills","Department for Business, Innovation and Skills",31/08/2010,Grants - Non Statutory - Current - Other,Universities and Skills Group - Further Education,LIFELONG LEARNING UK (LLUK),1005474,309347
"Department for Business, Innovation and Skills","Department for Business, Innovation and Skills",09/08/2010,Grants - Non Statutory - Current - Other,Universities and Skills Group - Further Education,DEPARTMENT FOR EDUCATION,1003865,928011
"Department for Business, Innovation and Skills","Department for Business, Innovation and Skills",27/08/2010,Outsourced Programme Management Services,Universities and Skills Group - Further Education,THE ASSOCIATION OF LEARNING PROVIDERS LTD,1005407,29930.10525
"Department for Business, Innovation and Skills","Department for Business, Innovation and Skills",05/08/2010,Grants - Non Statutory - Current - Other,Universities and Skills Group - Further Education,HIGHER EDUCATION FUNDING COUNCIL FOR ENGLAND,1003644,2217641
"Department for Business, Innovation and Skills","Department for Business, Innovation and Skills",03/08/2010,Grants - Non Statutory - Current - Other,Universities and Skills Group - Further Education,NATIONAL INSTITUTE OF ADULT CONTINUING EDUCATION (ENGLAND AND WALES) NIACE,1003333,30000
"Department for Business, Innovation and Skills","Department for Business, Innovation and Skills",03/08/2010,Grants - Non Statutory - Current - Other,Universities and Skills Group - Further Education,NATIONAL INSTITUTE OF ADULT CONTINUING EDUCATION (ENGLAND AND WALES) NIACE,1003333,117187
"Department for Business, Innovation and Skills","Department for Business, Innovation and Skills",04/08/2010,Outsourced Programme Management Services,"Legal, People & Communications Group - Priority Projects Drectorate",SHEILA MOORCROFT (TRADING AS RESEARCH FOR TOMORROW TODAY),1003380,951.75
"Department for Business, Innovation and Skills","Department for Business, Innovation and Skills",31/08/2010,Outsourced Programme Management Services,"Legal, People & Communications Group - Priority Projects Drectorate",FUJITSU SERVICES LTD,1005507,3312.4
"Department for Business, Innovation and Skills","Department for Business, Innovation and Skills",09/08/2010,Outsourced Programme Management Services,"Legal, People & Communications Group - Priority Projects Drectorate",BUSINESS EVOLUTION ADVANCEMENT & TRAINING LTD,1003885,3455.5575
"Department for Business, Innovation and Skills","Department for Business, Innovation and Skills",06/08/2010,Outsourced Programme Management Services,"Legal, People & Communications Group - Priority Projects Drectorate",FUJITSU SERVICES LTD,1003659,6438.4
"Department for Business, Innovation and Skills","Department for Business, Innovation and Skills",31/08/2010,Outsourced Programme Management Services,"Legal, People & Communications Group - Priority Projects Drectorate",FUJITSU SERVICES LTD,1005524,6872.8
"Department for Business, Innovation and Skills","Department for Business, Innovation and Skills",06/08/2010,Outsourced Programme Management Services,"Legal, People & Communications Group - Priority Projects Drectorate",FUJITSU SERVICES LTD,1003661,7422.2
"Department for Business, Innovation and Skills","Department for Business, Innovation and Skills",17/08/2010,Grant in Aid - Current -Other,Universities and Skills Group - Higher Education,HIGHER EDUCATION FUNDING COUNCIL FOR ENGLAND,1004238,841700000
"Department for Business, Innovation and Skills","Department for Business, Innovation and Skills",16/08/2010,Grants - Non Statutory - Current - Other,Universities and Skills Group - Learners,STUDENT LOANS COMPANY LIMITED,1004141,71117747
"Department for Business, Innovation and Skills","Department for Business, Innovation and Skills",04/08/2010,Grants - Non Statutory - Current - Other,Universities and Skills Group - Learners,FAMILY ACTION,1003457,6000
"Department for Business, Innovation and Skills","Department for Business, Innovation and Skills",06/08/2010,Grants - Non Statutory - Current - Other,Universities and Skills Group - Learners,ROYAL ANNIVERSARY TRUST,1003715,41117
"Department for Business, Innovation and Skills","Department for Business, Innovation and Skills",09/08/2010,Technical Advice,Universities and Skills Group - Learners,COI COMMUNICATIONS,1003770,68075
"Department for Business, Innovation and Skills","Department for Business, Innovation and Skills",18/08/2010,Consultancy Advice Provided From Third Parties,Universities and Skills Group - Learners,SHM PRODUCTIONS LTD,1004685,11210.96875
"Department for Business, Innovation and Skills","Department for Business, Innovation and Skills",03/08/2010,Non-GIA Funding of Bodies (Departmental and Non-Departmental),Fair Markets Group Summary - Insolvency Service,THE INSOLVENCY SERVICE,1003420,3200000
"Department for Business, Innovation and Skills","Department for Business, Innovation and Skills",27/08/2010,Criminal Law and Prosecution Work,"Legal, People & Communications Group - Legal",MLM,1005400,-864.1905
"Department for Business, Innovation and Skills","Department for Business, Innovation and Skills",17/08/2010,Criminal Law and Prosecution Work,"Legal, People & Communications Group - Legal",FRISBY SOLICITORS LTD T/A FRISBY AND CO,1004632,-145.73525
"Department for Business, Innovation and Skills","Department for Business, Innovation and Skills",17/08/2010,Criminal Law and Prosecution Work,"Legal, People & Communications Group - Legal",FRISBY SOLICITORS LTD T/A FRISBY AND CO,1004614,730.296
"Department for Business, Innovation and Skills","Department for Business, Innovation and Skills",23/08/2010,Criminal Law and Prosecution Work,"Legal, People & Communications Group - Legal",MORGAN BROWN & CAHILL SOLICITORS,1005058,731.59025
"Department for Business, Innovation and Skills","Department for Business, Innovation and Skills",18/08/2010,Criminal Law and Prosecution Work,"Legal, People & Communications Group - Legal",MCKINNELLS SOLICITORS,1004688,808.62325
"Department for Business, Innovation and Skills","Department for Business, Innovation and Skills",27/08/2010,Criminal Law and Prosecution Work,"Legal, People & Communications Group - Legal",MLM,1005400,864.1905
"Department for Business, Innovation and Skills","Department for Business, Innovation and Skills",27/08/2010,Criminal Law and Prosecution Work,"Legal, People & Communications Group - Legal",MLM,1005401,880.8505
"Department for Business, Innovation and Skills","Department for Business, Innovation and Skills",27/08/2010,Criminal Law and Prosecution Work,"Legal, People & Communications Group - Legal",MLM,1005400,882.97725
"Department for Business, Innovation and Skills","Department for Business, Innovation and Skills",11/08/2010,Criminal Law and Prosecution Work,"Legal, People & Communications Group - Legal",BOLITHO WAY,1003890,1019.0305
"Department for Business, Innovation and Skills","Department for Business, Innovation and Skills",18/08/2010,Criminal Law and Prosecution Work,"Legal, People & Communications Group - Legal",DARBYS,1004676,2491.6815
"Department for Business, Innovation and Skills","Department for Business, Innovation and Skills",09/08/2010,Criminal Law and Prosecution Work,"Legal, People & Communications Group - Legal",BLACKFORDS LLP,1003899,2942.0825
"Department for Business, Innovation and Skills","Department for Business, Innovation and Skills",18/08/2010,Criminal Law and Prosecution Work,"Legal, People & Communications Group - Legal",HARRIS CUFFARO & NICHOLS,1004670,3159.152
"Department for Business, Innovation and Skills","Department for Business, Innovation and Skills",18/08/2010,Criminal Law and Prosecution Work,"Legal, People & Communications Group - Legal",BIRKETTS LLP,1004678,3300.575
"Department for Business, Innovation and Skills","Department for Business, Innovation and Skills",17/08/2010,Criminal Law and Prosecution Work,"Legal, People & Communications Group - Legal",FRISBY SOLICITORS LTD T/A FRISBY AND CO,1004614,3899.97775
"Department for Business, Innovation and Skills","Department for Business, Innovation and Skills",24/08/2010,Criminal Law and Prosecution Work,"Legal, People & Communications Group - Legal",FORD SIMEY,1004668,6056.36125
"Department for Business, Innovation and Skills","Department for Business, Innovation and Skills",03/08/2010,Criminal Law and Prosecution Work,"Legal, People & Communications Group - Legal",PAUL TAYLOR,1003032,-8019.187
"Department for Business, Innovation and Skills","Department for Business, Innovation and Skills",25/08/2010,Criminal Law and Prosecution Work,"Legal, People & Communications Group - Legal",IAN LAWRIE,1005162,-4887.14225
"Department for Business, Innovation and Skills","Department for Business, Innovation and Skills",20/08/2010,Criminal Law and Prosecution Work,"Legal, People & Communications Group - Legal",CHRISTOPHER CONVEY,1004724,-2238.422
"Department for Business, Innovation and Skills","Department for Business, Innovation and Skills",25/08/2010,Criminal Law and Prosecution Work,"Legal, People & Communications Group - Legal",IAN LAWRIE,1005162,-855.24725
"Department for Business, Innovation and Skills","Department for Business, Innovation and Skills",20/08/2010,Criminal Law and Prosecution Work,"Legal, People & Communications Group - Legal",MR PAUL OZIN,1004741,-602.1875
"Department for Business, Innovation and Skills","Department for Business, Innovation and Skills",17/08/2010,Criminal Law and Prosecution Work,"Legal, People & Communications Group - Legal",ANDREW DAVIDSON,1004573,505.25
"Department for Business, Innovation and Skills","Department for Business, Innovation and Skills",19/08/2010,Criminal Law and Prosecution Work,"Legal, People & Communications Group - Legal",MR PAUL OZIN,1004735,514.0625
"Department for Business, Innovation and Skills","Department for Business, Innovation and Skills",20/08/2010,Criminal Law and Prosecution Work,"Legal, People & Communications Group - Legal",MR PAUL OZIN,1004741,602.1875
"Department for Business, Innovation and Skills","Department for Business, Innovation and Skills",18/08/2010,Criminal Law and Prosecution Work,"Legal, People & Communications Group - Legal",RUKHSHANDA HUSSAIN,1004694,646.25
"Department for Business, Innovation and Skills","Department for Business, Innovation and Skills",25/08/2010,Criminal Law and Prosecution Work,"Legal, People & Communications Group - Legal",ALEXANDER ROOKE,1005203,753.49225
"Department for Business, Innovation and Skills","Department for Business, Innovation and Skills",25/08/2010,Criminal Law and Prosecution Work,"Legal, People & Communications Group - Legal",JOHN CAUDLE,1005216,790.19925
"Department for Business, Innovation and Skills","Department for Business, Innovation and Skills",25/08/2010,Criminal Law and Prosecution Work,"Legal, People & Communications Group - Legal",IAN LAWRIE,1005162,815.35
"Department for Business, Innovation and Skills","Department for Business, Innovation and Skills",25/08/2010,Criminal Law and Prosecution Work,"Legal, People & Communications Group - Legal",IAN LAWRIE,1005162,855.24725
"Department for Business, Innovation and Skills","Department for Business, Innovation and Skills",26/08/2010,Criminal Law and Prosecution Work,"Legal, People & Communications Group - Legal",GLYN SAMUEL,1005250,908.66275
"Department for Business, Innovation and Skills","Department for Business, Innovation and Skills",19/08/2010,Criminal Law and Prosecution Work,"Legal, People & Communications Group - Legal",KEVIN SAUNDERS,1004812,925.34775
"Department for Business, Innovation and Skills","Department for Business, Innovation and Skills",24/08/2010,Criminal Law and Prosecution Work,"Legal, People & Communications Group - Legal",CHRISTOPHER BADGER,1005163,960.64475
"Department for Business, Innovation and Skills","Department for Business, Innovation and Skills",19/08/2010,Criminal Law and Prosecution Work,"Legal, People & Communications Group - Legal",CAMERON BROWN,1004692,1010.5
"Department for Business, Innovation and Skills","Department for Business, Innovation and Skills",24/08/2010,Criminal Law and Prosecution Work,"Legal, People & Communications Group - Legal",NICHOLAS COLE,1005056,1046.34925
"Department for Business, Innovation and Skills","Department for Business, Innovation and Skills",11/08/2010,Criminal Law and Prosecution Work,"Legal, People & Communications Group - Legal",ANDREW LOCKHART,1003838,1223.071
"Department for Business, Innovation and Skills","Department for Business, Innovation and Skills",19/08/2010,Criminal Law and Prosecution Work,"Legal, People & Communications Group - Legal",MR PAUL OZIN,1004726,1321.875
"Department for Business, Innovation and Skills","Department for Business, Innovation and Skills",11/08/2010,Criminal Law and Prosecution Work,"Legal, People & Communications Group - Legal",ALEXANDER MUNRO,1003835,1480.5
"Department for Business, Innovation and Skills","Department for Business, Innovation and Skills",11/08/2010,Criminal Law and Prosecution Work,"Legal, People & Communications Group - Legal",SARA LAWSON,1003836,1704.925
"Department for Business, Innovation and Skills","Department for Business, Innovation and Skills",20/08/2010,Criminal Law and Prosecution Work,"Legal, People & Communications Group - Legal",MR PAUL OZIN,1004738,1750.2565
"Department for Business, Innovation and Skills","Department for Business, Innovation and Skills",20/08/2010,Criminal Law and Prosecution Work,"Legal, People & Communications Group - Legal",CHRISTOPHER CONVEY,1004724,1909.05775
"Department for Business, Innovation and Skills","Department for Business, Innovation and Skills",17/08/2010,Criminal Law and Prosecution Work,"Legal, People & Communications Group - Legal",CHRISTOPHER CONVEY,1004572,2065.84975
"Department for Business, Innovation and Skills","Department for Business, Innovation and Skills",20/08/2010,Criminal Law and Prosecution Work,"Legal, People & Communications Group - Legal",CHRISTOPHER CONVEY,1004724,2238.422
"Department for Business, Innovation and Skills","Department for Business, Innovation and Skills",18/08/2010,Criminal Law and Prosecution Work,"Legal, People & Communications Group - Legal",MR PAUL OZIN,1004691,2573.5555
"Department for Business, Innovation and Skills","Department for Business, Innovation and Skills",25/08/2010,Criminal Law and Prosecution Work,"Legal, People & Communications Group - Legal",IAN LAWRIE,1005162,4887.14225
"Department for Business, Innovation and Skills","Department for Business, Innovation and Skills",25/08/2010,Criminal Law and Prosecution Work,"Legal, People & Communications Group - Legal",IAN LAWRIE,1005162,4887.14225
"Department for Business, Innovation and Skills","Department for Business, Innovation and Skills",03/08/2010,Criminal Law and Prosecution Work,"Legal, People & Communications Group - Legal",PAUL TAYLOR,1003032,7559.16275
"Department for Business, Innovation and Skills","Department for Business, Innovation and Skills",03/08/2010,Criminal Law and Prosecution Work,"Legal, People & Communications Group - Legal",PAUL TAYLOR,1003032,8019.187
"Department for Business, Innovation and Skills","Department for Business, Innovation and Skills",27/08/2010,Criminal Law and Prosecution Work,"Legal, People & Communications Group - Legal",SARAH LE FEVRE,1005403,12042.96275
"Department for Business, Innovation and Skills","Department for Business, Innovation and Skills",27/08/2010,Criminal Law and Prosecution Work,"Legal, People & Communications Group - Legal",JONATHAN ASHLEY-NORMAN,1005405,19832.12
"Department for Business, Innovation and Skills","Department for Business, Innovation and Skills",18/08/2010,Criminal Law and Prosecution Work,"Legal, People & Communications Group - Legal",COMPANIES HOUSE,1004679,551
"Department for Business, Innovation and Skills","Department for Business, Innovation and Skills",17/08/2010,Criminal Law and Prosecution Work,"Legal, People & Communications Group - Legal",SERVOCA RESOURCING SOLUTIONS LTD,1004590,847.645
"Department for Business, Innovation and Skills","Department for Business, Innovation and Skills",17/08/2010,Criminal Law and Prosecution Work,"Legal, People & Communications Group - Legal",SERVOCA RESOURCING SOLUTIONS LTD,1004596,863.0375
"Department for Business, Innovation and Skills","Department for Business, Innovation and Skills",26/08/2010,Criminal Law and Prosecution Work,"Legal, People & Communications Group - Legal",MENDIP MEDIA GROUP LTD,1005322,873.75
"Department for Business, Innovation and Skills","Department for Business, Innovation and Skills",04/08/2010,Criminal Law and Prosecution Work,"Legal, People & Communications Group - Legal",ZYLAB UK LTD,1003028,881.25
"Department for Business, Innovation and Skills","Department for Business, Innovation and Skills",11/08/2010,Criminal Law and Prosecution Work,"Legal, People & Communications Group - Legal",DX NETWORK SERVICES LTD,1004111,1106.709
"Department for Business, Innovation and Skills","Department for Business, Innovation and Skills",27/08/2010,Criminal Law and Prosecution Work,"Legal, People & Communications Group - Legal",DR ARTHUR OWINO,1005408,1200
"Department for Business, Innovation and Skills","Department for Business, Innovation and Skills",11/08/2010,Criminal Law and Prosecution Work,"Legal, People & Communications Group - Legal",KJB Partners Ltd,1004110,1365.35
"Department for Business, Innovation and Skills","Department for Business, Innovation and Skills",20/08/2010,Criminal Law and Prosecution Work,"Legal, People & Communications Group - Legal",KJB Partners Ltd,1004880,1794.2485
"Department for Business, Innovation and Skills","Department for Business, Innovation and Skills",20/08/2010,Criminal Law and Prosecution Work,"Legal, People & Communications Group - Legal",KJB Partners Ltd,1004882,2125.34
"Department for Business, Innovation and Skills","Department for Business, Innovation and Skills",04/08/2010,Criminal Law and Prosecution Work,"Legal, People & Communications Group - Legal",ZYLAB UK LTD,1003026,2643.75
"Department for Business, Innovation and Skills","Department for Business, Innovation and Skills",18/08/2010,Criminal Law and Prosecution Work,"Legal, People & Communications Group - Legal",CARPE-DATUM,1004667,3742.375
"Department for Business, Innovation and Skills","Department for Business, Innovation and Skills",26/08/2010,Criminal Law and Prosecution Work,"Legal, People & Communications Group - Legal",RSM TENON LTD,1004820,11271.1875
"Department for Business, Innovation and Skills","Department for Business, Innovation and Skills",24/08/2010,Criminal Law and Prosecution Work,"Legal, People & Communications Group - Legal",RSM TENON LTD,1001546,32636.2125
"Department for Business, Innovation and Skills","Department for Business, Innovation and Skills",10/08/2010,Translation Services (Programme),"Innovation, Enterprise & Better Regulation Executive - Innovation",FCO SERVICES,1004077,2681.35
"Department for Business, Innovation and Skills","Department for Business, Innovation and Skills",31/08/2010,Capital Grants - Other,"Business Group - Solutions for Business, Low Carbon & Services",ONE NORTH EAST,1005557,3078.58
"Department for Business, Innovation and Skills","Department for Business, Innovation and Skills",31/08/2010,Capital Grants - Other,"Business Group - Solutions for Business, Low Carbon & Services",ONE NORTH EAST,1005558,121803.61
"Department for Business, Innovation and Skills","Department for Business, Innovation and Skills",31/08/2010,Capital Grants - Other,"Business Group - Solutions for Business, Low Carbon & Services",ONE NORTH EAST,1005557,580000
"Department for Business, Innovation and Skills","Department for Business, Innovation and Skills",31/08/2010,Capital Grants - Other,"Business Group - Solutions for Business, Low Carbon & Services",SOUTH WEST OF ENGLAND REGIONAL DEVELOPMENT AGENCY,1005554,1695661.84
"Department for Business, Innovation and Skills","Department for Business, Innovation and Skills",31/08/2010,Capital Grants - Other,"Business Group - Solutions for Business, Low Carbon & Services",ONE NORTH EAST,1005559,617148.04
"Department for Business, Innovation and Skills","Department for Business, Innovation and Skills",03/08/2010,Grants - Non Statutory - Current - Other,Business Group - Advanced Manufacturing Industries,SOUTH EAST ENGLAND DEVELOPMENT AGENCY,1003300,17304
"Department for Business, Innovation and Skills","Department for Business, Innovation and Skills",13/08/2010,London Development Agency - Current Statutory Grant,Business Group - Economic Development Directorate,THE LONDON DEVELOPMENT AGENCY LTD,1003754,18100000
"Department for Business, Innovation and Skills","Department for Business, Innovation and Skills",19/08/2010,Cash Expenditure during the Year - SFLG,"Innovation, Enterprise & Better Regulation Executive - Enterprise Directorate",BERR SFLG PAYMENT TO LENDERS,1004806,20429.32
"Department for Business, Innovation and Skills","Department for Business, Innovation and Skills",19/08/2010,Cash Expenditure during the Year - SFLG,"Innovation, Enterprise & Better Regulation Executive - Enterprise Directorate",BERR SFLG PAYMENT TO LENDERS,1004786,36328.65
"Department for Business, Innovation and Skills","Department for Business, Innovation and Skills",19/08/2010,Cash Expenditure during the Year - SFLG,"Innovation, Enterprise & Better Regulation Executive - Enterprise Directorate",BERR SFLG PAYMENT TO LENDERS,1004805,61065.43
"Department for Business, Innovation and Skills","Department for Business, Innovation and Skills",19/08/2010,Cash Expenditure during the Year - SFLG,"Innovation, Enterprise & Better Regulation Executive - Enterprise Directorate",BERR SFLG PAYMENT TO LENDERS,1004797,81209.17
"Department for Business, Innovation and Skills","Department for Business, Innovation and Skills",19/08/2010,Cash Expenditure during the Year - SFLG,"Innovation, Enterprise & Better Regulation Executive - Enterprise Directorate",BERR SFLG PAYMENT TO LENDERS,1004785,188779.11
"Department for Business, Innovation and Skills","Department for Business, Innovation and Skills",19/08/2010,Cash Expenditure during the Year - SFLG,"Innovation, Enterprise & Better Regulation Executive - Enterprise Directorate",BERR SFLG PAYMENT TO LENDERS,1004807,190849.22
"Department for Business, Innovation and Skills","Department for Business, Innovation and Skills",19/08/2010,Cash Expenditure during the Year - SFLG,"Innovation, Enterprise & Better Regulation Executive - Enterprise Directorate",BERR SFLG PAYMENT TO LENDERS,1004790,212720.32
"Department for Business, Innovation and Skills","Department for Business, Innovation and Skills",19/08/2010,Cash Expenditure during the Year - SFLG,"Innovation, Enterprise & Better Regulation Executive - Enterprise Directorate",BERR SFLG PAYMENT TO LENDERS,1004804,221916.39
"Department for Business, Innovation and Skills","Department for Business, Innovation and Skills",19/08/2010,Cash Expenditure during the Year - SFLG,"Innovation, Enterprise & Better Regulation Executive - Enterprise Directorate",BERR SFLG PAYMENT TO LENDERS,1004796,373153.5
"Department for Business, Innovation and Skills","Department for Business, Innovation and Skills",19/08/2010,Cash Expenditure during the Year - SFLG,"Innovation, Enterprise & Better Regulation Executive - Enterprise Directorate",BERR SFLG PAYMENT TO LENDERS,1004795,526369.03
"Department for Business, Innovation and Skills","Department for Business, Innovation and Skills",19/08/2010,Cash Expenditure during the Year - SFLG,"Innovation, Enterprise & Better Regulation Executive - Enterprise Directorate",BERR SFLG PAYMENT TO LENDERS,1004792,1501185.02
"Department for Business, Innovation and Skills","Department for Business, Innovation and Skills",19/08/2010,Cash Expenditure during the Year - SFLG,"Innovation, Enterprise & Better Regulation Executive - Enterprise Directorate",BERR SFLG PAYMENT TO LENDERS,1004788,1840702.46
"Department for Business, Innovation and Skills","Department for Business, Innovation and Skills",19/08/2010,Cash Expenditure during the Year - SFLG,"Innovation, Enterprise & Better Regulation Executive - Enterprise Directorate",BERR SFLG PAYMENT TO LENDERS,1004801,1844618.12
"Department for Business, Innovation and Skills","Department for Business, Innovation and Skills",19/08/2010,Cash Expenditure during the Year - SFLG,"Innovation, Enterprise & Better Regulation Executive - Enterprise Directorate",BERR SFLG PAYMENT TO LENDERS,1004800,2023991.57
"Department for Business, Innovation and Skills","Department for Business, Innovation and Skills",19/08/2010,Cash Expenditure during the Year - SFLG,"Innovation, Enterprise & Better Regulation Executive - Enterprise Directorate",BERR SFLG PAYMENT TO LENDERS,1004791,2674033.85
"Department for Business, Innovation and Skills","Department for Business, Innovation and Skills",19/08/2010,Recovery of Loan Guarantees,"Innovation, Enterprise & Better Regulation Executive - Enterprise Directorate",BERR SFLG PAYMENT TO LENDERS,1004788,-164758.69
"Department for Business, Innovation and Skills","Department for Business, Innovation and Skills",19/08/2010,Recovery of Loan Guarantees,"Innovation, Enterprise & Better Regulation Executive - Enterprise Directorate",BERR SFLG PAYMENT TO LENDERS,1004792,-96611.86
"Department for Business, Innovation and Skills","Department for Business, Innovation and Skills",19/08/2010,Recovery of Loan Guarantees,"Innovation, Enterprise & Better Regulation Executive - Enterprise Directorate",BERR SFLG PAYMENT TO LENDERS,1004791,-59668.18
"Department for Business, Innovation and Skills","Department for Business, Innovation and Skills",19/08/2010,Recovery of Loan Guarantees,"Innovation, Enterprise & Better Regulation Executive - Enterprise Directorate",BERR SFLG PAYMENT TO LENDERS,1004800,-35612.21
"Department for Business, Innovation and Skills","Department for Business, Innovation and Skills",19/08/2010,Recovery of Loan Guarantees,"Innovation, Enterprise & Better Regulation Executive - Enterprise Directorate",BERR SFLG PAYMENT TO LENDERS,1004790,-11813.17
"Department for Business, Innovation and Skills","Department for Business, Innovation and Skills",19/08/2010,Recovery of Loan Guarantees,"Innovation, Enterprise & Better Regulation Executive - Enterprise Directorate",BERR SFLG PAYMENT TO LENDERS,1004785,-9488.94
"Department for Business, Innovation and Skills","Department for Business, Innovation and Skills",19/08/2010,Recovery of Loan Guarantees,"Innovation, Enterprise & Better Regulation Executive - Enterprise Directorate",BERR SFLG PAYMENT TO LENDERS,1004801,-6033.79
"Department for Business, Innovation and Skills","Department for Business, Innovation and Skills",19/08/2010,Recovery of Loan Guarantees,"Innovation, Enterprise & Better Regulation Executive - Enterprise Directorate",BERR SFLG PAYMENT TO LENDERS,1004792,96611.86
"Department for Business, Innovation and Skills","Department for Business, Innovation and Skills",19/08/2010,Recovery of Loan Guarantees,"Innovation, Enterprise & Better Regulation Executive - Enterprise Directorate",BERR SFLG PAYMENT TO LENDERS,1004800,-71669.24
"Department for Business, Innovation and Skills","Department for Business, Innovation and Skills",19/08/2010,Recovery of Loan Guarantees,"Innovation, Enterprise & Better Regulation Executive - Enterprise Directorate",BERR SFLG PAYMENT TO LENDERS,1004788,-40159.25
"Department for Business, Innovation and Skills","Department for Business, Innovation and Skills",19/08/2010,Recovery of Loan Guarantees,"Innovation, Enterprise & Better Regulation Executive - Enterprise Directorate",BERR SFLG PAYMENT TO LENDERS,1004786,-27341.93
"Department for Business, Innovation and Skills","Department for Business, Innovation and Skills",19/08/2010,Recovery of Loan Guarantees,"Innovation, Enterprise & Better Regulation Executive - Enterprise Directorate",BERR SFLG PAYMENT TO LENDERS,1004791,-10677.97
"Department for Business, Innovation and Skills","Department for Business, Innovation and Skills",19/08/2010,Recovery of Loan Guarantees,"Innovation, Enterprise & Better Regulation Executive - Enterprise Directorate",BERR SFLG PAYMENT TO LENDERS,1004790,-4677.98
"Department for Business, Innovation and Skills","Department for Business, Innovation and Skills",19/08/2010,Recovery of Loan Guarantees,"Innovation, Enterprise & Better Regulation Executive - Enterprise Directorate",BERR SFLG PAYMENT TO LENDERS,1004792,-3750
"Department for Business, Innovation and Skills","Department for Business, Innovation and Skills",19/08/2010,Recovery of Loan Guarantees,"Innovation, Enterprise & Better Regulation Executive - Enterprise Directorate",BERR SFLG PAYMENT TO LENDERS,1004801,-2264.17
"Department for Business, Innovation and Skills","Department for Business, Innovation and Skills",19/08/2010,Recovery of Loan Guarantees,"Innovation, Enterprise & Better Regulation Executive - Enterprise Directorate",BERR SFLG PAYMENT TO LENDERS,1004797,-894.09
"Department for Business, Innovation and Skills","Department for Business, Innovation and Skills",26/08/2010,Accommodation Rentals (Programme),Finance & Commercial Group - Information and Workplace Strategies,PRUDENTIAL PROPERTY INVESTMENT MANAGERS LTD,1005341,828.375
"Department for Business, Innovation and Skills","Department for Business, Innovation and Skills",20/08/2010,Accommodation Rentals (Programme),Finance & Commercial Group - Information and Workplace Strategies,SOUTH WEST BUILDERS FEDERATION,1004937,6242.1875
"Department for Business, Innovation and Skills","Department for Business, Innovation and Skills",06/08/2010,Rates (Programme),Finance & Commercial Group - Information and Workplace Strategies,EXETER CITY COUNCIL,1003664,6681.85
"Department for Business, Innovation and Skills","Department for Business, Innovation and Skills",06/08/2010,Rates (Programme),Finance & Commercial Group - Information and Workplace Strategies,TAUNTON DEANE BOROUGH COUNCIL,1003679,14241.66
"Department for Business, Innovation and Skills","Department for Business, Innovation and Skills",06/08/2010,Rates (Programme),Finance & Commercial Group - Information and Workplace Strategies,KINGSTON UPON HULL CITY COUNCIL,1003663,14980.81
"Department for Business, Innovation and Skills","Department for Business, Innovation and Skills",06/08/2010,Rates (Programme),Finance & Commercial Group - Information and Workplace Strategies,DUDLEY METROPOLITAN BOROUGH COUNCIL,1003676,19113.19
"Department for Business, Innovation and Skills","Department for Business, Innovation and Skills",06/08/2010,Rates (Programme),Finance & Commercial Group - Information and Workplace Strategies,PETERBOROUGH CITY COUNCIL,1003665,31149.48
"Department for Business, Innovation and Skills","Department for Business, Innovation and Skills",25/08/2010,Rates (Programme),Finance & Commercial Group - Information and Workplace Strategies,SWINDON BOROUGH COUNCIL,1005190,33421.34
"Department for Business, Innovation and Skills","Department for Business, Innovation and Skills",02/08/2010,Rates (Programme),Finance & Commercial Group - Information and Workplace Strategies,LONDON BOROUGH OF NEWHAM,1003154,57841.14
"Department for Business, Innovation and Skills","Department for Business, Innovation and Skills",20/08/2010,Rates (Programme),Finance & Commercial Group - Information and Workplace Strategies,CHELMSFORD BOROUGH COUNCIL,1004968,98323.35
"Department for Business, Innovation and Skills","Department for Business, Innovation and Skills",26/08/2010,Maintenance (Programme),Finance & Commercial Group - Information and Workplace Strategies,G4S TECHNOLOGY LTD,1005334,540
"Department for Business, Innovation and Skills","Department for Business, Innovation and Skills",03/08/2010,Maintenance (Programme),Finance & Commercial Group - Information and Workplace Strategies,MITIE TECHNICAL FACILITIES MANAGEMENT LTD,1003314,541.44
"Department for Business, Innovation and Skills","Department for Business, Innovation and Skills",03/08/2010,Maintenance (Programme),Finance & Commercial Group - Information and Workplace Strategies,MITIE TECHNICAL FACILITIES MANAGEMENT LTD,1003314,602.44
"Department for Business, Innovation and Skills","Department for Business, Innovation and Skills",09/08/2010,Maintenance (Programme),Finance & Commercial Group - Information and Workplace Strategies,ADT FIRE AND SECURITY PLC,1003914,817.13
"Department for Business, Innovation and Skills","Department for Business, Innovation and Skills",09/08/2010,Maintenance (Programme),Finance & Commercial Group - Information and Workplace Strategies,ADT FIRE AND SECURITY PLC,1003934,817.13
"Department for Business, Innovation and Skills","Department for Business, Innovation and Skills",20/08/2010,Maintenance (Programme),Finance & Commercial Group - Information and Workplace Strategies,TEMPLEDOVE LTD,1004932,965.93
"Department for Business, Innovation and Skills","Department for Business, Innovation and Skills",03/08/2010,Maintenance (Programme),Finance & Commercial Group - Information and Workplace Strategies,MITIE TECHNICAL FACILITIES MANAGEMENT LTD,1003314,3941.12
"Department for Business, Innovation and Skills","Department for Business, Innovation and Skills",03/08/2010,Maintenance (Programme),Finance & Commercial Group - Information and Workplace Strategies,MITIE TECHNICAL FACILITIES MANAGEMENT LTD,1003314,7165.2
"Department for Business, Innovation and Skills","Department for Business, Innovation and Skills",26/08/2010,Electricity (Programme),Finance & Commercial Group - Information and Workplace Strategies,INTERNATIONAL AIR TRANSPORT ASSOCIATION (IATA),1005325,676.0245
"Department for Business, Innovation and Skills","Department for Business, Innovation and Skills",20/08/2010,Electricity (Programme),Finance & Commercial Group - Information and Workplace Strategies,EDF ENERGY plc,1004993,901.18975
"Department for Business, Innovation and Skills","Department for Business, Innovation and Skills",23/08/2010,Electricity (Programme),Finance & Commercial Group - Information and Workplace Strategies,EDF ENERGY plc,1004996,923.5265
"Department for Business, Innovation and Skills","Department for Business, Innovation and Skills",20/08/2010,Electricity (Programme),Finance & Commercial Group - Information and Workplace Strategies,E-ON ENERGY LTD,1004953,1243.74925
"Department for Business, Innovation and Skills","Department for Business, Innovation and Skills",10/08/2010,Electricity (Programme),Finance & Commercial Group - Information and Workplace Strategies,E-ON ENERGY LTD,1003956,1278.776
"Department for Business, Innovation and Skills","Department for Business, Innovation and Skills",23/08/2010,Electricity (Programme),Finance & Commercial Group - Information and Workplace Strategies,EDF ENERGY plc,1005026,1631.2055
"Department for Business, Innovation and Skills","Department for Business, Innovation and Skills",23/08/2010,Electricity (Programme),Finance & Commercial Group - Information and Workplace Strategies,EDF ENERGY plc,1005000,1658.45375
"Department for Business, Innovation and Skills","Department for Business, Innovation and Skills",20/08/2010,Electricity (Programme),Finance & Commercial Group - Information and Workplace Strategies,BRITISH ENERGY DIRECT LTD,1004942,14057.35925
"Department for Business, Innovation and Skills","Department for Business, Innovation and Skills",18/08/2010,Gas (Programme),Finance & Commercial Group - Information and Workplace Strategies,MITIE TECHNICAL FACILITIES MANAGEMENT LTD,1003878,655.47
"Department for Business, Innovation and Skills","Department for Business, Innovation and Skills",26/08/2010,Gas (Programme),Finance & Commercial Group - Information and Workplace Strategies,BRITISH GAS BUSINESS SERVICES LTD,1005324,1415.076
"Department for Business, Innovation and Skills","Department for Business, Innovation and Skills",31/08/2010,Water (Programme),Finance & Commercial Group - Information and Workplace Strategies,SOUTH STAFFS WATER,1005347,-737.11
"Department for Business, Innovation and Skills","Department for Business, Innovation and Skills",31/08/2010,Water (Programme),Finance & Commercial Group - Information and Workplace Strategies,SOUTH STAFFS WATER,1005347,737.11
"Department for Business, Innovation and Skills","Department for Business, Innovation and Skills",06/08/2010,Water (Programme),Finance & Commercial Group - Information and Workplace Strategies,VEOLIA WATER CENTRAL LTD,1003719,1055.44
"Department for Business, Innovation and Skills","Department for Business, Innovation and Skills",06/08/2010,Other Accommodation Charges (Programme),Finance & Commercial Group - Information and Workplace Strategies,CRYSTAL SERVICES PLC,1003662,-53758.35
"Department for Business, Innovation and Skills","Department for Business, Innovation and Skills",19/08/2010,Other Accommodation Charges (Programme),Finance & Commercial Group - Information and Workplace Strategies,PHS GROUP LTD,1004334,-270.4145
"Department for Business, Innovation and Skills","Department for Business, Innovation and Skills",19/08/2010,Other Accommodation Charges (Programme),Finance & Commercial Group - Information and Workplace Strategies,PHS GROUP LTD,1004766,-222.5215
"Department for Business, Innovation and Skills","Department for Business, Innovation and Skills",19/08/2010,Other Accommodation Charges (Programme),Finance & Commercial Group - Information and Workplace Strategies,PHS GROUP LTD,1004753,-122.388
"Department for Business, Innovation and Skills","Department for Business, Innovation and Skills",19/08/2010,Other Accommodation Charges (Programme),Finance & Commercial Group - Information and Workplace Strategies,PHS GROUP LTD,1004757,-122.388
"Department for Business, Innovation and Skills","Department for Business, Innovation and Skills",18/08/2010,Other Accommodation Charges (Programme),Finance & Commercial Group - Information and Workplace Strategies,PHS GROUP LTD,1004696,-111.26075
"Department for Business, Innovation and Skills","Department for Business, Innovation and Skills",19/08/2010,Other Accommodation Charges (Programme),Finance & Commercial Group - Information and Workplace Strategies,PHS GROUP LTD,1004759,-111.26075
"Department for Business, Innovation and Skills","Department for Business, Innovation and Skills",19/08/2010,Other Accommodation Charges (Programme),Finance & Commercial Group - Information and Workplace Strategies,PHS GROUP LTD,1004762,-111.26075
"Department for Business, Innovation and Skills","Department for Business, Innovation and Skills",19/08/2010,Other Accommodation Charges (Programme),Finance & Commercial Group - Information and Workplace Strategies,PHS GROUP LTD,1004764,-111.26075
"Department for Business, Innovation and Skills","Department for Business, Innovation and Skills",18/08/2010,Other Accommodation Charges (Programme),Finance & Commercial Group - Information and Workplace Strategies,PHS GROUP LTD,1004698,-94.69
"Department for Business, Innovation and Skills","Department for Business, Innovation and Skills",18/08/2010,Other Accommodation Charges (Programme),Finance & Commercial Group - Information and Workplace Strategies,PHS GROUP LTD,1004705,-94.69
"Department for Business, Innovation and Skills","Department for Business, Innovation and Skills",18/08/2010,Other Accommodation Charges (Programme),Finance & Commercial Group - Information and Workplace Strategies,PHS GROUP LTD,1004700,-94.69
"Department for Business, Innovation and Skills","Department for Business, Innovation and Skills",18/08/2010,Other Accommodation Charges (Programme),Finance & Commercial Group - Information and Workplace Strategies,PHS GROUP LTD,1004697,-94.69
"Department for Business, Innovation and Skills","Department for Business, Innovation and Skills",20/08/2010,Other Accommodation Charges (Programme),Finance & Commercial Group - Information and Workplace Strategies,DTZ DEBENHAM TIE LEUNG,1004970,558.4
"Department for Business, Innovation and Skills","Department for Business, Innovation and Skills",26/08/2010,Other Accommodation Charges (Programme),Finance & Commercial Group - Information and Workplace Strategies,CANON (UK) LTD,1005338,593.19875
"Department for Business, Innovation and Skills","Department for Business, Innovation and Skills",27/08/2010,Other Accommodation Charges (Programme),Finance & Commercial Group - Information and Workplace Strategies,K CLEANING SERVICES,1005346,982.24
"Department for Business, Innovation and Skills","Department for Business, Innovation and Skills",03/08/2010,Other Accommodation Charges (Programme),Finance & Commercial Group - Information and Workplace Strategies,K CLEANING SERVICES,1003161,982.24
"Department for Business, Innovation and Skills","Department for Business, Innovation and Skills",02/08/2010,Other Accommodation Charges (Programme),Finance & Commercial Group - Information and Workplace Strategies,K CLEANING SERVICES,1003158,982.24
"Department for Business, Innovation and Skills","Department for Business, Innovation and Skills",02/08/2010,Other Accommodation Charges (Programme),Finance & Commercial Group - Information and Workplace Strategies,K CLEANING SERVICES,1003157,982.24
"Department for Business, Innovation and Skills","Department for Business, Innovation and Skills",02/08/2010,Other Accommodation Charges (Programme),Finance & Commercial Group - Information and Workplace Strategies,K CLEANING SERVICES,1003156,982.24
"Department for Business, Innovation and Skills","Department for Business, Innovation and Skills",09/08/2010,Other Accommodation Charges (Programme),Finance & Commercial Group - Information and Workplace Strategies,DLA PIPER UK LLP,1003926,1625.29
"Department for Business, Innovation and Skills","Department for Business, Innovation and Skills",09/08/2010,Other Accommodation Charges (Programme),Finance & Commercial Group - Information and Workplace Strategies,DTZ DEBENHAM TIE LEUNG,1003903,2527.1
"Department for Business, Innovation and Skills","Department for Business, Innovation and Skills",06/08/2010,Other Accommodation Charges (Programme),Finance & Commercial Group - Information and Workplace Strategies,VEOLIA ENVIRONMENTAL SERVICES UK LTD,1003721,3215.4815
"Department for Business, Innovation and Skills","Department for Business, Innovation and Skills",06/08/2010,Other Accommodation Charges (Programme),Finance & Commercial Group - Information and Workplace Strategies,DTZ DEBENHAM TIE LEUNG,1003751,4062.5
"Department for Business, Innovation and Skills","Department for Business, Innovation and Skills",04/08/2010,Other Accommodation Charges (Programme),Finance & Commercial Group - Information and Workplace Strategies,IDEAL CLEANING SERVICES LTD,1003356,4345.04
"Department for Business, Innovation and Skills","Department for Business, Innovation and Skills",06/08/2010,Other Accommodation Charges (Programme),Finance & Commercial Group - Information and Workplace Strategies,CRYSTAL SERVICES PLC,1003662,5973.15
"Department for Business, Innovation and Skills","Department for Business, Innovation and Skills",06/08/2010,Other Accommodation Charges (Programme),Finance & Commercial Group - Information and Workplace Strategies,G4S SECURE SOLUTIONS (UK) LTD,1003716,20865.96
"Department for Business, Innovation and Skills","Department for Business, Innovation and Skills",06/08/2010,Other Accommodation Charges (Programme),Finance & Commercial Group - Information and Workplace Strategies,CRYSTAL SERVICES PLC,1003662,53758.35
"Department for Business, Innovation and Skills","Department for Business, Innovation and Skills",20/08/2010,Buildings Insurance (Programme),Finance & Commercial Group - Information and Workplace Strategies,CAPITAL VENTURES LTD,1004995,1102.77
"Department for Business, Innovation and Skills","Department for Business, Innovation and Skills",20/08/2010,Buildings Insurance (Programme),Finance & Commercial Group - Information and Workplace Strategies,INTERNATIONAL AIR TRANSPORT ASSOCIATION (IATA),1004992,3420.33
"Department for Business, Innovation and Skills","Department for Business, Innovation and Skills",27/08/2010,Buildings Insurance (Programme),Finance & Commercial Group - Information and Workplace Strategies,JONES LANG LASALLE LTD,1005396,5885.88
"Department for Business, Innovation and Skills","Department for Business, Innovation and Skills",05/08/2010,Buildings Insurance (Programme),Finance & Commercial Group - Information and Workplace Strategies,REICH INSURANCE BROKERS LTD,1003496,13693.66
"Department for Business, Innovation and Skills","Department for Business, Innovation and Skills",26/08/2010,Purchase of  Advertising and Publicity (Programme),Fair Markets Group Summary - Employment Relations,COI COMMUNICATIONS,1005210,35622.97
"Department for Business, Innovation and Skills","Department for Business, Innovation and Skills",26/08/2010,Purchase of  Advertising and Publicity (Programme),Fair Markets Group Summary - Employment Relations,COI COMMUNICATIONS,1005210,50560
"Department for Business, Innovation and Skills","Department for Business, Innovation and Skills",26/08/2010,Purchase of  Advertising and Publicity (Programme),Fair Markets Group Summary - Employment Relations,COI COMMUNICATIONS,1005210,93816.05
"Department for Business, Innovation and Skills","Department for Business, Innovation and Skills",17/08/2010,Grant in Aid - Current -Other,Universities and Skills Group - Higher Education,OFFICE FOR FAIR ACCESS (OFFA),1004240,40000
"Department for Business, Innovation and Skills","Department for Business, Innovation and Skills",06/08/2010,Purchase of Completed Research,"Innovation, Enterprise & Better Regulation Executive - Innovation",UNITED KINGDOM ACCREDITATION SERVICE,1003622,92278.93
"Department for Business, Innovation and Skills","Department for Business, Innovation and Skills",26/08/2010,Financial Advice and Services,Finance & Commercial Group - Finance Group,AMEY COMMUNITY LTD,1005238,31071.25
"Department for Business, Innovation and Skills","Department for Business, Innovation and Skills",13/08/2010,Counsels Expert Legal Opinion on Points of Law,"Legal, People & Communications Group - Legal",BEACHCROFT LLP,1004422,-5436.2
"Department for Business, Innovation and Skills","Department for Business, Innovation and Skills",11/08/2010,Counsels Expert Legal Opinion on Points of Law,"Legal, People & Communications Group - Legal",BEACHCROFT LLP,1004213,-4845
"Department for Business, Innovation and Skills","Department for Business, Innovation and Skills",13/08/2010,Counsels Expert Legal Opinion on Points of Law,"Legal, People & Communications Group - Legal",BEACHCROFT LLP,1004398,-4695
"Department for Business, Innovation and Skills","Department for Business, Innovation and Skills",13/08/2010,Counsels Expert Legal Opinion on Points of Law,"Legal, People & Communications Group - Legal",BEACHCROFT LLP,1004413,-3783.5
"Department for Business, Innovation and Skills","Department for Business, Innovation and Skills",11/08/2010,Counsels Expert Legal Opinion on Points of Law,"Legal, People & Communications Group - Legal",BEACHCROFT LLP,1004227,-3740
"Department for Business, Innovation and Skills","Department for Business, Innovation and Skills",13/08/2010,Counsels Expert Legal Opinion on Points of Law,"Legal, People & Communications Group - Legal",BEACHCROFT LLP,1004420,-3369.5
"Department for Business, Innovation and Skills","Department for Business, Innovation and Skills",13/08/2010,Counsels Expert Legal Opinion on Points of Law,"Legal, People & Communications Group - Legal",BEACHCROFT LLP,1004396,-3105
"Department for Business, Innovation and Skills","Department for Business, Innovation and Skills",11/08/2010,Counsels Expert Legal Opinion on Points of Law,"Legal, People & Communications Group - Legal",BEACHCROFT LLP,1004225,-2965
"Department for Business, Innovation and Skills","Department for Business, Innovation and Skills",13/08/2010,Counsels Expert Legal Opinion on Points of Law,"Legal, People & Communications Group - Legal",BEACHCROFT LLP,1004389,-2265
"Department for Business, Innovation and Skills","Department for Business, Innovation and Skills",13/08/2010,Counsels Expert Legal Opinion on Points of Law,"Legal, People & Communications Group - Legal",BEACHCROFT LLP,1004401,-1950
"Department for Business, Innovation and Skills","Department for Business, Innovation and Skills",11/08/2010,Counsels Expert Legal Opinion on Points of Law,"Legal, People & Communications Group - Legal",BEACHCROFT LLP,1004228,-1840
"Department for Business, Innovation and Skills","Department for Business, Innovation and Skills",11/08/2010,Counsels Expert Legal Opinion on Points of Law,"Legal, People & Communications Group - Legal",BEACHCROFT LLP,1004219,-1695
"Department for Business, Innovation and Skills","Department for Business, Innovation and Skills",11/08/2010,Counsels Expert Legal Opinion on Points of Law,"Legal, People & Communications Group - Legal",BEACHCROFT LLP,1004214,-1621
"Department for Business, Innovation and Skills","Department for Business, Innovation and Skills",13/08/2010,Counsels Expert Legal Opinion on Points of Law,"Legal, People & Communications Group - Legal",BEACHCROFT LLP,1004386,-1483.5
"Department for Business, Innovation and Skills","Department for Business, Innovation and Skills",11/08/2010,Counsels Expert Legal Opinion on Points of Law,"Legal, People & Communications Group - Legal",BEACHCROFT LLP,1004218,-1472
"Department for Business, Innovation and Skills","Department for Business, Innovation and Skills",11/08/2010,Counsels Expert Legal Opinion on Points of Law,"Legal, People & Communications Group - Legal",BEACHCROFT LLP,1004223,-1253.5
"Department for Business, Innovation and Skills","Department for Business, Innovation and Skills",11/08/2010,Counsels Expert Legal Opinion on Points of Law,"Legal, People & Communications Group - Legal",BEACHCROFT LLP,1004210,-1140
"Department for Business, Innovation and Skills","Department for Business, Innovation and Skills",13/08/2010,Counsels Expert Legal Opinion on Points of Law,"Legal, People & Communications Group - Legal",BEACHCROFT LLP,1004421,-1130
"Department for Business, Innovation and Skills","Department for Business, Innovation and Skills",13/08/2010,Counsels Expert Legal Opinion on Points of Law,"Legal, People & Communications Group - Legal",BEACHCROFT LLP,1004394,-1069.5
"Department for Business, Innovation and Skills","Department for Business, Innovation and Skills",13/08/2010,Counsels Expert Legal Opinion on Points of Law,"Legal, People & Communications Group - Legal",BEACHCROFT LLP,1004395,-1012
"Department for Business, Innovation and Skills","Department for Business, Innovation and Skills",11/08/2010,Counsels Expert Legal Opinion on Points of Law,"Legal, People & Communications Group - Legal",BEACHCROFT LLP,1004215,-885.5
"Department for Business, Innovation and Skills","Department for Business, Innovation and Skills",11/08/2010,Counsels Expert Legal Opinion on Points of Law,"Legal, People & Communications Group - Legal",BEACHCROFT LLP,1004212,-874
"Department for Business, Innovation and Skills","Department for Business, Innovation and Skills",13/08/2010,Counsels Expert Legal Opinion on Points of Law,"Legal, People & Communications Group - Legal",BEACHCROFT LLP,1004406,-665.5
"Department for Business, Innovation and Skills","Department for Business, Innovation and Skills",11/08/2010,Counsels Expert Legal Opinion on Points of Law,"Legal, People & Communications Group - Legal",BEACHCROFT LLP,1004217,-621
"Department for Business, Innovation and Skills","Department for Business, Innovation and Skills",11/08/2010,Counsels Expert Legal Opinion on Points of Law,"Legal, People & Communications Group - Legal",BEACHCROFT LLP,1004208,-575
"Department for Business, Innovation and Skills","Department for Business, Innovation and Skills",13/08/2010,Counsels Expert Legal Opinion on Points of Law,"Legal, People & Communications Group - Legal",BEACHCROFT LLP,1004403,-539.5
"Department for Business, Innovation and Skills","Department for Business, Innovation and Skills",11/08/2010,Counsels Expert Legal Opinion on Points of Law,"Legal, People & Communications Group - Legal",BEACHCROFT LLP,1004204,-506
"Department for Business, Innovation and Skills","Department for Business, Innovation and Skills",11/08/2010,Counsels Expert Legal Opinion on Points of Law,"Legal, People & Communications Group - Legal",SIMPSON & MARWICK SOLICITORS,1004252,-496
"Department for Business, Innovation and Skills","Department for Business, Innovation and Skills",13/08/2010,Counsels Expert Legal Opinion on Points of Law,"Legal, People & Communications Group - Legal",BEACHCROFT LLP,1004416,-391
"Department for Business, Innovation and Skills","Department for Business, Innovation and Skills",13/08/2010,Counsels Expert Legal Opinion on Points of Law,"Legal, People & Communications Group - Legal",BEACHCROFT LLP,1004409,-325.5
"Department for Business, Innovation and Skills","Department for Business, Innovation and Skills",13/08/2010,Counsels Expert Legal Opinion on Points of Law,"Legal, People & Communications Group - Legal",BEACHCROFT LLP,1004387,-230
"Department for Business, Innovation and Skills","Department for Business, Innovation and Skills",13/08/2010,Counsels Expert Legal Opinion on Points of Law,"Legal, People & Communications Group - Legal",BEACHCROFT LLP,1004390,-215.5
"Department for Business, Innovation and Skills","Department for Business, Innovation and Skills",13/08/2010,Counsels Expert Legal Opinion on Points of Law,"Legal, People & Communications Group - Legal",BEACHCROFT LLP,1004391,-138
"Department for Business, Innovation and Skills","Department for Business, Innovation and Skills",11/08/2010,Counsels Expert Legal Opinion on Points of Law,"Legal, People & Communications Group - Legal",BEACHCROFT LLP,1004204,506
"Department for Business, Innovation and Skills","Department for Business, Innovation and Skills",13/08/2010,Counsels Expert Legal Opinion on Points of Law,"Legal, People & Communications Group - Legal",BEACHCROFT LLP,1004421,530
"Department for Business, Innovation and Skills","Department for Business, Innovation and Skills",11/08/2010,Counsels Expert Legal Opinion on Points of Law,"Legal, People & Communications Group - Legal",BEACHCROFT LLP,1004208,575
"Department for Business, Innovation and Skills","Department for Business, Innovation and Skills",13/08/2010,Counsels Expert Legal Opinion on Points of Law,"Legal, People & Communications Group - Legal",BEACHCROFT LLP,1004421,600
"Department for Business, Innovation and Skills","Department for Business, Innovation and Skills",13/08/2010,Counsels Expert Legal Opinion on Points of Law,"Legal, People & Communications Group - Legal",BEACHCROFT LLP,1004386,609.5
"Department for Business, Innovation and Skills","Department for Business, Innovation and Skills",11/08/2010,Counsels Expert Legal Opinion on Points of Law,"Legal, People & Communications Group - Legal",BEACHCROFT LLP,1004217,621
"Department for Business, Innovation and Skills","Department for Business, Innovation and Skills",13/08/2010,Counsels Expert Legal Opinion on Points of Law,"Legal, People & Communications Group - Legal",BEACHCROFT LLP,1004398,765
"Department for Business, Innovation and Skills","Department for Business, Innovation and Skills",13/08/2010,Counsels Expert Legal Opinion on Points of Law,"Legal, People & Communications Group - Legal",BEACHCROFT LLP,1004386,874
"Department for Business, Innovation and Skills","Department for Business, Innovation and Skills",11/08/2010,Counsels Expert Legal Opinion on Points of Law,"Legal, People & Communications Group - Legal",BEACHCROFT LLP,1004212,874
"Department for Business, Innovation and Skills","Department for Business, Innovation and Skills",11/08/2010,Counsels Expert Legal Opinion on Points of Law,"Legal, People & Communications Group - Legal",BEACHCROFT LLP,1004215,885.5
"Department for Business, Innovation and Skills","Department for Business, Innovation and Skills",13/08/2010,Counsels Expert Legal Opinion on Points of Law,"Legal, People & Communications Group - Legal",BEACHCROFT LLP,1004420,989
"Department for Business, Innovation and Skills","Department for Business, Innovation and Skills",13/08/2010,Counsels Expert Legal Opinion on Points of Law,"Legal, People & Communications Group - Legal",BEACHCROFT LLP,1004395,1012
"Department for Business, Innovation and Skills","Department for Business, Innovation and Skills",13/08/2010,Counsels Expert Legal Opinion on Points of Law,"Legal, People & Communications Group - Legal",BEACHCROFT LLP,1004394,1069.5
"Department for Business, Innovation and Skills","Department for Business, Innovation and Skills",11/08/2010,Counsels Expert Legal Opinion on Points of Law,"Legal, People & Communications Group - Legal",BEACHCROFT LLP,1004210,1140
"Department for Business, Innovation and Skills","Department for Business, Innovation and Skills",11/08/2010,Counsels Expert Legal Opinion on Points of Law,"Legal, People & Communications Group - Legal",BEACHCROFT LLP,1004223,1253.5
"Department for Business, Innovation and Skills","Department for Business, Innovation and Skills",11/08/2010,Counsels Expert Legal Opinion on Points of Law,"Legal, People & Communications Group - Legal",BEACHCROFT LLP,1004218,1472
"Department for Business, Innovation and Skills","Department for Business, Innovation and Skills",11/08/2010,Counsels Expert Legal Opinion on Points of Law,"Legal, People & Communications Group - Legal",BEACHCROFT LLP,1004214,1621
"Department for Business, Innovation and Skills","Department for Business, Innovation and Skills",11/08/2010,Counsels Expert Legal Opinion on Points of Law,"Legal, People & Communications Group - Legal",BEACHCROFT LLP,1004219,1695
"Department for Business, Innovation and Skills","Department for Business, Innovation and Skills",11/08/2010,Counsels Expert Legal Opinion on Points of Law,"Legal, People & Communications Group - Legal",BEACHCROFT LLP,1004228,1840
"Department for Business, Innovation and Skills","Department for Business, Innovation and Skills",13/08/2010,Counsels Expert Legal Opinion on Points of Law,"Legal, People & Communications Group - Legal",BEACHCROFT LLP,1004401,1950
"Department for Business, Innovation and Skills","Department for Business, Innovation and Skills",13/08/2010,Counsels Expert Legal Opinion on Points of Law,"Legal, People & Communications Group - Legal",BEACHCROFT LLP,1004389,2085
"Department for Business, Innovation and Skills","Department for Business, Innovation and Skills",13/08/2010,Counsels Expert Legal Opinion on Points of Law,"Legal, People & Communications Group - Legal",BEACHCROFT LLP,1004420,2380.5
"Department for Business, Innovation and Skills","Department for Business, Innovation and Skills",11/08/2010,Counsels Expert Legal Opinion on Points of Law,"Legal, People & Communications Group - Legal",BEACHCROFT LLP,1004225,2965
"Department for Business, Innovation and Skills","Department for Business, Innovation and Skills",13/08/2010,Counsels Expert Legal Opinion on Points of Law,"Legal, People & Communications Group - Legal",BEACHCROFT LLP,1004396,3105
"Department for Business, Innovation and Skills","Department for Business, Innovation and Skills",11/08/2010,Counsels Expert Legal Opinion on Points of Law,"Legal, People & Communications Group - Legal",BEACHCROFT LLP,1004227,3740
"Department for Business, Innovation and Skills","Department for Business, Innovation and Skills",13/08/2010,Counsels Expert Legal Opinion on Points of Law,"Legal, People & Communications Group - Legal",BEACHCROFT LLP,1004413,3783.5
"Department for Business, Innovation and Skills","Department for Business, Innovation and Skills",13/08/2010,Counsels Expert Legal Opinion on Points of Law,"Legal, People & Communications Group - Legal",BEACHCROFT LLP,1004398,3930
"Department for Business, Innovation and Skills","Department for Business, Innovation and Skills",11/08/2010,Counsels Expert Legal Opinion on Points of Law,"Legal, People & Communications Group - Legal",BEACHCROFT LLP,1004213,4845
"Department for Business, Innovation and Skills","Department for Business, Innovation and Skills",13/08/2010,Counsels Expert Legal Opinion on Points of Law,"Legal, People & Communications Group - Legal",BEACHCROFT LLP,1004422,5316.2
"Department for Business, Innovation and Skills","Department for Business, Innovation and Skills",31/08/2010,Other Staff Costs (Programme),"Legal, People & Communications Group - Communications Directorate",COI COMMUNICATIONS,1005499,9376.5
"Department for Business, Innovation and Skills","Department for Business, Innovation and Skills",12/08/2010,Other Staff Costs (Programme),"Legal, People & Communications Group - Communications Directorate",COI COMMUNICATIONS,1004384,9408
"Department for Business, Innovation and Skills","Department for Business, Innovation and Skills",05/08/2010,Other Staff Costs (Programme),"Legal, People & Communications Group - Communications Directorate",COI COMMUNICATIONS,1003653,9870
"Department for Business, Innovation and Skills","Department for Business, Innovation and Skills",16/08/2010,Outsourced Programme Management Services,"Legal, People & Communications Group - Communications Directorate",BADENOCH AND CLARK LTD,1004503,1825.30375
"Department for Business, Innovation and Skills","Department for Business, Innovation and Skills",02/08/2010,Media and Design Services,"Innovation, Enterprise & Better Regulation Executive - Enterprise Directorate",THE BAG N BOX MAN LTD,1003012,-176.25
"Department for Business, Innovation and Skills","Department for Business, Innovation and Skills",09/08/2010,Media and Design Services,"Innovation, Enterprise & Better Regulation Executive - Enterprise Directorate",XCHANGETEAM GROUP LTD,1003464,-1692
"Department for Business, Innovation and Skills","Department for Business, Innovation and Skills",16/08/2010,Media and Design Services,"Innovation, Enterprise & Better Regulation Executive - Enterprise Directorate",XCHANGETEAM GROUP LTD,1004321,775.5
"Department for Business, Innovation and Skills","Department for Business, Innovation and Skills",20/08/2010,Media and Design Services,"Innovation, Enterprise & Better Regulation Executive - Enterprise Directorate",XCHANGETEAM GROUP LTD,1004703,1257.25
"Department for Business, Innovation and Skills","Department for Business, Innovation and Skills",09/08/2010,Media and Design Services,"Innovation, Enterprise & Better Regulation Executive - Enterprise Directorate",XCHANGETEAM GROUP LTD,1003464,1692
"Department for Business, Innovation and Skills","Department for Business, Innovation and Skills",23/08/2010,Media and Design Services,"Innovation, Enterprise & Better Regulation Executive - Enterprise Directorate",COI COMMUNICATIONS,1005006,12045
"Department for Business, Innovation and Skills","Department for Business, Innovation and Skills",19/08/2010,Publications (Programme),Strategic Policy Analysis - Strategic Policy Analysis,CLEANTECH NETWORK LLC,1004513,2550
"Department for Business, Innovation and Skills","Department for Business, Innovation and Skills",09/08/2010,Sponsorship Support,Strategic Policy Analysis - Strategic Policy Analysis,ROYAL INSTITUTE OF CHARTERED SURVEYORS,1003825,33844.83
"Department for Business, Innovation and Skills","Department for Business, Innovation and Skills",23/08/2010,Sponsorship Support,Strategic Policy Analysis - Strategic Policy Analysis,CONSTRUCTING EXCELLENCE LTD,1005021,60000
"Department for Business, Innovation and Skills","Department for Business, Innovation and Skills",16/08/2010,Payments to Treasury Solicitors and Treasury Counsel,"Legal, People & Communications Group - Legal",THE TREASURY SOLICITORS DEPARTMENT,1004571,3420
"Department for Business, Innovation and Skills","Department for Business, Innovation and Skills",16/08/2010,Payments to Treasury Solicitors and Treasury Counsel,"Legal, People & Communications Group - Legal",THE TREASURY SOLICITORS DEPARTMENT,1004571,97284.8
"Department for Business, Innovation and Skills","Department for Business, Innovation and Skills",11/08/2010,Non-GIA Funding of Bodies (Departmental and Non-Departmental),Fair Markets Group Summary - Consumer and Competition Policy,ROSPA ENTERPRISES LTD,1003893,27750
"Department for Business, Innovation and Skills","Department for Business, Innovation and Skills",11/08/2010,Other Training Costs (Programme),"Legal, People & Communications Group - Priority Projects Drectorate",CONSENSIA CONSULTING LTD,1004193,3132.49125
"Department for Business, Innovation and Skills","Department for Business, Innovation and Skills",09/08/2010,Other Training Costs (Programme),"Legal, People & Communications Group - Priority Projects Drectorate",BUSINESS EVOLUTION ADVANCEMENT & TRAINING LTD,1003829,3965
"Department for Business, Innovation and Skills","Department for Business, Innovation and Skills",03/08/2010,Additions - Bridges Fund Investment,"Innovation, Enterprise & Better Regulation Executive - Enterprise Directorate",BERR EQUITY INVESTMENT PROGRAMMES (CAPITAL),1003363,99600.46
"Department for Business, Innovation and Skills","Department for Business, Innovation and Skills",11/08/2010,Publications (Programme),Fair Markets Group Summary - Corporate Law and Governance,THE STATIONERY OFFICE LTD,1003823,1486.12
"Department for Business, Innovation and Skills","Department for Business, Innovation and Skills",31/08/2010,Interest Receivable - Other,Shareholder Executive - Shareholder Executive,POST OFFICE LTD C/O ROYAL MAIL,1005514,-29889.86
"Department for Business, Innovation and Skills","Department for Business, Innovation and Skills",27/08/2010,Interest Receivable - Other,Shareholder Executive - Shareholder Executive,POST OFFICE LTD C/O ROYAL MAIL,1005394,-6795.14
"Department for Business, Innovation and Skills","Department for Business, Innovation and Skills",24/08/2010,Interest Receivable - Other,Shareholder Executive - Shareholder Executive,POST OFFICE LTD C/O ROYAL MAIL,1005161,-6620.34
"Department for Business, Innovation and Skills","Department for Business, Innovation and Skills",10/08/2010,Interest Receivable - Other,Shareholder Executive - Shareholder Executive,POST OFFICE LTD C/O ROYAL MAIL,1004083,-6336.1
"Department for Business, Innovation and Skills","Department for Business, Innovation and Skills",06/08/2010,Interest Receivable - Other,Shareholder Executive - Shareholder Executive,POST OFFICE LTD C/O ROYAL MAIL,1003688,-5817.29
"Department for Business, Innovation and Skills","Department for Business, Innovation and Skills",13/08/2010,Interest Receivable - Other,Shareholder Executive - Shareholder Executive,POST OFFICE LTD C/O ROYAL MAIL,1004463,-4814.38
"Department for Business, Innovation and Skills","Department for Business, Innovation and Skills",12/08/2010,Interest Receivable - Other,Shareholder Executive - Shareholder Executive,POST OFFICE LTD C/O ROYAL MAIL,1004351,-4383.56
"Department for Business, Innovation and Skills","Department for Business, Innovation and Skills",20/08/2010,Interest Receivable - Other,Shareholder Executive - Shareholder Executive,POST OFFICE LTD C/O ROYAL MAIL,1004879,-4216.92
"Department for Business, Innovation and Skills","Department for Business, Innovation and Skills",19/08/2010,Interest Receivable - Other,Shareholder Executive - Shareholder Executive,POST OFFICE LTD C/O ROYAL MAIL,1004808,-3976.58
"Department for Business, Innovation and Skills","Department for Business, Innovation and Skills",31/08/2010,Additions Post Office Ltd - Loans from Vote,Shareholder Executive - Shareholder Executive,POST OFFICE LTD C/O ROYAL MAIL,1005514,8000000
"Department for Business, Innovation and Skills","Department for Business, Innovation and Skills",10/08/2010,Additions Post Office Ltd - Loans from Vote,Shareholder Executive - Shareholder Executive,POST OFFICE LTD C/O ROYAL MAIL,1004083,10000000
"Department for Business, Innovation and Skills","Department for Business, Innovation and Skills",19/08/2010,Additions Post Office Ltd - Loans from Vote,Shareholder Executive - Shareholder Executive,POST OFFICE LTD C/O ROYAL MAIL,1004808,11000000
"Department for Business, Innovation and Skills","Department for Business, Innovation and Skills",12/08/2010,Additions Post Office Ltd - Loans from Vote,Shareholder Executive - Shareholder Executive,POST OFFICE LTD C/O ROYAL MAIL,1004351,20000000
"Department for Business, Innovation and Skills","Department for Business, Innovation and Skills",27/08/2010,Additions Post Office Ltd - Loans from Vote,Shareholder Executive - Shareholder Executive,POST OFFICE LTD C/O ROYAL MAIL,1005394,31000000
"Department for Business, Innovation and Skills","Department for Business, Innovation and Skills",13/08/2010,Additions Post Office Ltd - Loans from Vote,Shareholder Executive - Shareholder Executive,POST OFFICE LTD C/O ROYAL MAIL,1004463,70000000
"Department for Business, Innovation and Skills","Department for Business, Innovation and Skills",24/08/2010,Additions Post Office Ltd - Loans from Vote,Shareholder Executive - Shareholder Executive,POST OFFICE LTD C/O ROYAL MAIL,1005161,74000000
"Department for Business, Innovation and Skills","Department for Business, Innovation and Skills",06/08/2010,Additions Post Office Ltd - Loans from Vote,Shareholder Executive - Shareholder Executive,POST OFFICE LTD C/O ROYAL MAIL,1003688,140000000
"Department for Business, Innovation and Skills","Department for Business, Innovation and Skills",20/08/2010,Additions Post Office Ltd - Loans from Vote,Shareholder Executive - Shareholder Executive,POST OFFICE LTD C/O ROYAL MAIL,1004879,163000000
"Department for Business, Innovation and Skills","Department for Business, Innovation and Skills",13/08/2010,Other Relocation Costs,Shareholder Executive - Shareholder Executive,"Personal Expense, Name Witheld",10272220,907.75
"Department for Business, Innovation and Skills","Department for Business, Innovation and Skills",05/08/2010,Taxis,"Innovation, Enterprise & Better Regulation Executive - Better Regulation Executive (BRE)",GOVERNMENT CAR AND DESPATCH AGENCY,1002769,-29.38
"Department for Business, Innovation and Skills","Department for Business, Innovation and Skills",24/08/2010,Mileage Allowances,"Legal, People & Communications Group - Legal","Personal Expense, Name Witheld",10272401,518.3
"Department for Business, Innovation and Skills","Department for Business, Innovation and Skills",03/08/2010,Mileage Allowances,"Legal, People & Communications Group - Legal","Personal Expense, Name Witheld",10271982,555.2
"Department for Business, Innovation and Skills","Department for Business, Innovation and Skills",09/08/2010,Mileage Allowances,"Legal, People & Communications Group - Legal","Personal Expense, Name Witheld",10272107,598.3
"Department for Business, Innovation and Skills","Department for Business, Innovation and Skills",16/08/2010,Mileage Allowances,"Legal, People & Communications Group - Legal","Personal Expense, Name Witheld",10272257,668
"Department for Business, Innovation and Skills","Department for Business, Innovation and Skills",17/08/2010,Other UK T&S,"Legal, People & Communications Group - Legal","Personal Expense, Name Witheld",10272283,580.55
"Department for Business, Innovation and Skills","Department for Business, Innovation and Skills",17/08/2010,Rail Fares Overseas,SCIENCE & RESEARCH GROUP - RESEARCH BASE,FOREIGN AND COMMONWEALTH OFFICE (FCO),1002450,-353.77
"Department for Business, Innovation and Skills","Department for Business, Innovation and Skills",17/08/2010,Rail Fares Overseas,SCIENCE & RESEARCH GROUP - RESEARCH BASE,FOREIGN AND COMMONWEALTH OFFICE (FCO),1002407,-337.07
"Department for Business, Innovation and Skills","Department for Business, Innovation and Skills",17/08/2010,Rail Fares Overseas,SCIENCE & RESEARCH GROUP - RESEARCH BASE,FOREIGN AND COMMONWEALTH OFFICE (FCO),1002407,-337.04
"Department for Business, Innovation and Skills","Department for Business, Innovation and Skills",25/08/2010,Air Fares Overseas,SCIENCE & RESEARCH GROUP - RESEARCH BASE,FOREIGN AND COMMONWEALTH OFFICE (FCO),1003176,-143.8
"Department for Business, Innovation and Skills","Department for Business, Innovation and Skills",25/08/2010,Air Fares Overseas,SCIENCE & RESEARCH GROUP - RESEARCH BASE,FOREIGN AND COMMONWEALTH OFFICE (FCO),1003175,-141.57
"Department for Business, Innovation and Skills","Department for Business, Innovation and Skills",25/08/2010,Air Fares Overseas,SCIENCE & RESEARCH GROUP - RESEARCH BASE,FOREIGN AND COMMONWEALTH OFFICE (FCO),1003179,-118.91
"Department for Business, Innovation and Skills","Department for Business, Innovation and Skills",06/08/2010,Air Fares Overseas,GOVERNMENT OFFICE FOR SCIENCE - GOVERNMENT OFFICE FOR SCIENCE,FOREIGN AND COMMONWEALTH OFFICE (FCO),1001099,546.12
"Department for Business, Innovation and Skills","Department for Business, Innovation and Skills",06/08/2010,Air Fares Overseas,GOVERNMENT OFFICE FOR SCIENCE - GOVERNMENT OFFICE FOR SCIENCE,FOREIGN AND COMMONWEALTH OFFICE (FCO),1001102,546.12
"Department for Business, Innovation and Skills","Department for Business, Innovation and Skills",06/08/2010,Air Fares Overseas,GOVERNMENT OFFICE FOR SCIENCE - GOVERNMENT OFFICE FOR SCIENCE,FOREIGN AND COMMONWEALTH OFFICE (FCO),1001103,546.12
"Department for Business, Innovation and Skills","Department for Business, Innovation and Skills",06/08/2010,Air Fares Overseas,SCIENCE & RESEARCH GROUP - RESEARCH BASE,FOREIGN AND COMMONWEALTH OFFICE (FCO),1001106,786.08
"Department for Business, Innovation and Skills","Department for Business, Innovation and Skills",17/08/2010,Air Fares Overseas,SCIENCE & RESEARCH GROUP - RESEARCH BASE,FOREIGN AND COMMONWEALTH OFFICE (FCO),1002455,988.93
"Department for Business, Innovation and Skills","Department for Business, Innovation and Skills",06/08/2010,Air Fares Overseas,SCIENCE & RESEARCH GROUP - RESEARCH BASE,FOREIGN AND COMMONWEALTH OFFICE (FCO),1001106,1000
"Department for Business, Innovation and Skills","Department for Business, Innovation and Skills",17/08/2010,Hotels Overseas,SCIENCE & RESEARCH GROUP - RESEARCH BASE,FOREIGN AND COMMONWEALTH OFFICE (FCO),1002456,733.5
"Department for Business, Innovation and Skills","Department for Business, Innovation and Skills",17/08/2010,Hotels Overseas,SCIENCE & RESEARCH GROUP - RESEARCH BASE,FOREIGN AND COMMONWEALTH OFFICE (FCO),1002449,8742.14
"Department for Business, Innovation and Skills","Department for Business, Innovation and Skills",03/08/2010,Entertaining UK,GOVERNMENT OFFICE FOR SCIENCE - GOVERNMENT OFFICE FOR SCIENCE,THE TRAVELLERS CLUB,1003325,1107.2965
"Department for Business, Innovation and Skills","Department for Business, Innovation and Skills",09/08/2010,External Training,Shareholder Executive - Shareholder Executive,LONDON BUSINESS SCHOOL,1003831,-15400
"Department for Business, Innovation and Skills","Department for Business, Innovation and Skills",02/08/2010,External Training,SCIENCE & RESEARCH GROUP - RESEARCH BASE,NEIL STEWART ASSOCIATES,1003163,599
"Department for Business, Innovation and Skills","Department for Business, Innovation and Skills",04/08/2010,External Training,Fair Markets Group Summary - Employment Relations,GREATER MANCHESTER POLICE,1002962,680
"Department for Business, Innovation and Skills","Department for Business, Innovation and Skills",20/08/2010,External Training,Office of Manpower Economics - Office of Manpower Economics,PITNEY BOWES SOFTWARE LTD,1004821,695
"Department for Business, Innovation and Skills","Department for Business, Innovation and Skills",05/08/2010,External Training,Fair Markets Group Summary - Consumer and Competition Policy,NATIONAL SCHOOL OF GOVERNMENT (CMPS),1003072,800
"Department for Business, Innovation and Skills","Department for Business, Innovation and Skills",10/08/2010,External Training,Strategic Policy Analysis - Strategic Policy Analysis,HM TREASURY,1002971,935
"Department for Business, Innovation and Skills","Department for Business, Innovation and Skills",27/08/2010,External Training,"Legal, People & Communications Group - Organisation Design",CIPD ENTERPRISES LTD,1005382,960
"Department for Business, Innovation and Skills","Department for Business, Innovation and Skills",27/08/2010,External Training,Business Group - Economic Development Directorate,LIFE ROOTS,1005395,1000
"Department for Business, Innovation and Skills","Department for Business, Innovation and Skills",04/08/2010,External Training,"Legal, People & Communications Group - Communications Directorate",THE FARADAY PARTNERSHIP LTD,1003431,1000
"Department for Business, Innovation and Skills","Department for Business, Innovation and Skills",05/08/2010,External Training,Finance & Commercial Group - Finance Group,BPP PROFESSIONAL EDUCATION LTD,1003612,1034.05
"Department for Business, Innovation and Skills","Department for Business, Innovation and Skills",25/08/2010,External Training,Fair Markets Group Summary - Employment Relations,WEST MIDLANDS POLICE,1005148,1350
"Department for Business, Innovation and Skills","Department for Business, Innovation and Skills",02/08/2010,External Training,Universities and Skills Group - USG Admin,NATIONAL SCHOOL OF GOVERNMENT (CMPS),1003071,2150
"Department for Business, Innovation and Skills","Department for Business, Innovation and Skills",04/08/2010,External Training,Finance & Commercial Group - Finance Group,NATIONAL SCHOOL OF GOVERNMENT,1003471,2240
"Department for Business, Innovation and Skills","Department for Business, Innovation and Skills",11/08/2010,External Training,Universities and Skills Group - USG Finance Unit,PERFORMANCE 1,1004195,2250
"Department for Business, Innovation and Skills","Department for Business, Innovation and Skills",12/08/2010,External Training,"Innovation, Enterprise & Better Regulation Executive - Better Regulation Executive (BRE)",NATIONAL SCHOOL OF GOVERNMENT (CMPS),1004263,2280
"Department for Business, Innovation and Skills","Department for Business, Innovation and Skills",09/08/2010,External Training,Shareholder Executive - Shareholder Executive,LONDON BUSINESS SCHOOL,1003831,2340
"Department for Business, Innovation and Skills","Department for Business, Innovation and Skills",23/08/2010,External Training,"Innovation, Enterprise & Better Regulation Executive - Better Regulation Executive (BRE)",HAY GROUP MANAGEMENT LTD,1005055,3552.5
"Department for Business, Innovation and Skills","Department for Business, Innovation and Skills",26/08/2010,External Training,Strategic Policy Analysis - Strategic Policy Analysis,NOW-C-CHANGE LTD,1005267,3979.1
"Department for Business, Innovation and Skills","Department for Business, Innovation and Skills",09/08/2010,External Training,Business Group - Business Competitiveness - Secretariat/GRU,AIMS4CHANGE LTD,1003755,5790
"Department for Business, Innovation and Skills","Department for Business, Innovation and Skills",23/08/2010,External Training,"Innovation, Enterprise & Better Regulation Executive - IEBRE Central Support",STANTON MARRIS LLP,1005054,9800
"Department for Business, Innovation and Skills","Department for Business, Innovation and Skills",09/08/2010,External Training,Shareholder Executive - Shareholder Executive,LONDON BUSINESS SCHOOL,1003831,13060
"Department for Business, Innovation and Skills","Department for Business, Innovation and Skills",09/08/2010,External Training,Shareholder Executive - Shareholder Executive,LONDON BUSINESS SCHOOL,1003831,15400
"Department for Business, Innovation and Skills","Department for Business, Innovation and Skills",26/08/2010,Internal Training,GOVERNMENT OFFICE FOR SCIENCE - GOVERNMENT OFFICE FOR SCIENCE,WILSON SHERRIFF LTD,1005327,1122
"Department for Business, Innovation and Skills","Department for Business, Innovation and Skills",09/08/2010,Internal Training,GOVERNMENT OFFICE FOR SCIENCE - GOVERNMENT OFFICE FOR SCIENCE,NATIONAL SCHOOL OF GOVERNMENT (CMPS),1003763,2275
"Department for Business, Innovation and Skills","Department for Business, Innovation and Skills",10/08/2010,Training (Agencies),Business Group - Advanced Manufacturing Industries,CATALYST BUSINESS DYNAMICS LTD,1004143,500
"Department for Business, Innovation and Skills","Department for Business, Innovation and Skills",03/08/2010,Centrally Funded Training,"Innovation, Enterprise & Better Regulation Executive - Better Regulation Executive (BRE)",MANAGEMENT DEVELOPMENT PARTNERSHIP LTD,1003235,-585
"Department for Business, Innovation and Skills","Department for Business, Innovation and Skills",03/08/2010,Centrally Funded Training,"Innovation, Enterprise & Better Regulation Executive - Better Regulation Executive (BRE)",MANAGEMENT DEVELOPMENT PARTNERSHIP LTD,1003235,585
"Department for Business, Innovation and Skills","Department for Business, Innovation and Skills",03/08/2010,Centrally Funded Training,"Innovation, Enterprise & Better Regulation Executive - Better Regulation Executive (BRE)",MANAGEMENT DEVELOPMENT PARTNERSHIP LTD,1003235,585
"Department for Business, Innovation and Skills","Department for Business, Innovation and Skills",10/08/2010,Other External Recruitment Costs (Staff),Business Group - Information Economy,PREDICTABLE NETWORK SOLUTIONS LTD,1003955,2750
"Department for Business, Innovation and Skills","Department for Business, Innovation and Skills",04/08/2010,Other External Recruitment Costs (Staff),Business Group - Information Economy,PREDICTABLE NETWORK SOLUTIONS LTD,1003461,9750
"Department for Business, Innovation and Skills","Department for Business, Innovation and Skills",10/08/2010,Other External Recruitment Costs (Staff),Business Group - Information Economy,PREDICTABLE NETWORK SOLUTIONS LTD,1003955,10000
"Department for Business, Innovation and Skills","Department for Business, Innovation and Skills",02/08/2010,Other External Recruitment Costs (Staff),Business Group - Information Economy,ANALYSYS MASON LTD,1003252,15587.6
"Department for Business, Innovation and Skills","Department for Business, Innovation and Skills",27/08/2010,Other External Recruitment Costs (Staff),Business Group - Information Economy,ANALYSYS MASON LTD,1005316,16065
"Department for Business, Innovation and Skills","Department for Business, Innovation and Skills",31/08/2010,Other External Recruitment Costs (Staff),Business Group - Information Economy,PINSENT MASONS LLP,1005384,21036
"Department for Business, Innovation and Skills","Department for Business, Innovation and Skills",10/08/2010,Other Staff Costs,Business Group - Information Economy,OFCOM,1002353,4418.43
"Department for Business, Innovation and Skills","Department for Business, Innovation and Skills",10/08/2010,Other Staff Costs,Business Group - Information Economy,OFCOM,1003393,4418.43
"Department for Business, Innovation and Skills","Department for Business, Innovation and Skills",05/08/2010,Car Hire and Leasing,Ministerial and Parliamentary Support Team - Ministerial and Parliamentary Support Team,GOVERNMENT CAR AND DESPATCH AGENCY,1003583,-683.24
"Department for Business, Innovation and Skills","Department for Business, Innovation and Skills",09/08/2010,Car Hire and Leasing,Ministerial and Parliamentary Support Team - Ministerial and Parliamentary Support Team,GOVERNMENT CAR AND DESPATCH AGENCY,1004010,-534.61
"Department for Business, Innovation and Skills","Department for Business, Innovation and Skills",10/08/2010,Car Hire and Leasing,Ministerial and Parliamentary Support Team - Ministerial and Parliamentary Support Team,GOVERNMENT CAR AND DESPATCH AGENCY,1004017,-395.04
"Department for Business, Innovation and Skills","Department for Business, Innovation and Skills",09/08/2010,Car Hire and Leasing,Ministerial and Parliamentary Support Team - Ministerial and Parliamentary Support Team,GOVERNMENT CAR AND DESPATCH AGENCY,1004006,-394.57
"Department for Business, Innovation and Skills","Department for Business, Innovation and Skills",09/08/2010,Car Hire and Leasing,Ministerial and Parliamentary Support Team - Ministerial and Parliamentary Support Team,GOVERNMENT CAR AND DESPATCH AGENCY,1004006,-355.8
"Department for Business, Innovation and Skills","Department for Business, Innovation and Skills",05/08/2010,Car Hire and Leasing,Fair Markets Group Summary - Employment Relations,INCHCAPE FLEET SOLUTIONS LTD,1003601,-315.1805
"Department for Business, Innovation and Skills","Department for Business, Innovation and Skills",05/08/2010,Car Hire and Leasing,Ministerial and Parliamentary Support Team - Ministerial and Parliamentary Support Team,GOVERNMENT CAR AND DESPATCH AGENCY,1003605,-284
"Department for Business, Innovation and Skills","Department for Business, Innovation and Skills",05/08/2010,Car Hire and Leasing,Fair Markets Group Summary - Employment Relations,INCHCAPE FLEET SOLUTIONS LTD,1003601,-237.26775
"Department for Business, Innovation and Skills","Department for Business, Innovation and Skills",05/08/2010,Car Hire and Leasing,Fair Markets Group Summary - Employment Relations,INCHCAPE FLEET SOLUTIONS LTD,1003601,-216.11
"Department for Business, Innovation and Skills","Department for Business, Innovation and Skills",09/08/2010,Car Hire and Leasing,Ministerial and Parliamentary Support Team - Ministerial and Parliamentary Support Team,GOVERNMENT CAR AND DESPATCH AGENCY,1004014,-118.84
"Department for Business, Innovation and Skills","Department for Business, Innovation and Skills",09/08/2010,Car Hire and Leasing,Ministerial and Parliamentary Support Team - Ministerial and Parliamentary Support Team,GOVERNMENT CAR AND DESPATCH AGENCY,1003976,-103.62
"Department for Business, Innovation and Skills","Department for Business, Innovation and Skills",09/08/2010,Car Hire and Leasing,Ministerial and Parliamentary Support Team - Ministerial and Parliamentary Support Team,GOVERNMENT CAR AND DESPATCH AGENCY,1003959,-57.4
"Department for Business, Innovation and Skills","Department for Business, Innovation and Skills",09/08/2010,Car Hire and Leasing,Ministerial and Parliamentary Support Team - Ministerial and Parliamentary Support Team,GOVERNMENT CAR AND DESPATCH AGENCY,1003958,-53.75
"Department for Business, Innovation and Skills","Department for Business, Innovation and Skills",09/08/2010,Car Hire and Leasing,Ministerial and Parliamentary Support Team - Ministerial and Parliamentary Support Team,GOVERNMENT CAR AND DESPATCH AGENCY,1003972,-46.5
"Department for Business, Innovation and Skills","Department for Business, Innovation and Skills",09/08/2010,Car Hire and Leasing,Ministerial and Parliamentary Support Team - Ministerial and Parliamentary Support Team,GOVERNMENT CAR AND DESPATCH AGENCY,1003944,-30.72
"Department for Business, Innovation and Skills","Department for Business, Innovation and Skills",09/08/2010,Car Hire and Leasing,Ministerial and Parliamentary Support Team - Ministerial and Parliamentary Support Team,GOVERNMENT CAR AND DESPATCH AGENCY,1004008,-30.72
"Department for Business, Innovation and Skills","Department for Business, Innovation and Skills",09/08/2010,Car Hire and Leasing,Ministerial and Parliamentary Support Team - Ministerial and Parliamentary Support Team,GOVERNMENT CAR AND DESPATCH AGENCY,1003967,-28.7
"Department for Business, Innovation and Skills","Department for Business, Innovation and Skills",09/08/2010,Car Hire and Leasing,Ministerial and Parliamentary Support Team - Ministerial and Parliamentary Support Team,GOVERNMENT CAR AND DESPATCH AGENCY,1004036,518.04
"Department for Business, Innovation and Skills","Department for Business, Innovation and Skills",05/08/2010,Car Hire and Leasing,Ministerial and Parliamentary Support Team - Ministerial and Parliamentary Support Team,GOVERNMENT CAR AND DESPATCH AGENCY,1003580,526.65
"Department for Business, Innovation and Skills","Department for Business, Innovation and Skills",09/08/2010,Car Hire and Leasing,Ministerial and Parliamentary Support Team - Ministerial and Parliamentary Support Team,GOVERNMENT CAR AND DESPATCH AGENCY,1004010,534.61
"Department for Business, Innovation and Skills","Department for Business, Innovation and Skills",09/08/2010,Car Hire and Leasing,Ministerial and Parliamentary Support Team - Ministerial and Parliamentary Support Team,GOVERNMENT CAR AND DESPATCH AGENCY,1004010,534.61
"Department for Business, Innovation and Skills","Department for Business, Innovation and Skills",09/08/2010,Car Hire and Leasing,Ministerial and Parliamentary Support Team - Ministerial and Parliamentary Support Team,GOVERNMENT CAR AND DESPATCH AGENCY,1003981,538.12
"Department for Business, Innovation and Skills","Department for Business, Innovation and Skills",09/08/2010,Car Hire and Leasing,Ministerial and Parliamentary Support Team - Ministerial and Parliamentary Support Team,GOVERNMENT CAR AND DESPATCH AGENCY,1004015,552.04
"Department for Business, Innovation and Skills","Department for Business, Innovation and Skills",13/08/2010,Car Hire and Leasing,Ministerial and Parliamentary Support Team - Ministerial and Parliamentary Support Team,GOVERNMENT CAR AND DESPATCH AGENCY,1004469,567.77
"Department for Business, Innovation and Skills","Department for Business, Innovation and Skills",09/08/2010,Car Hire and Leasing,Ministerial and Parliamentary Support Team - Ministerial and Parliamentary Support Team,GOVERNMENT CAR AND DESPATCH AGENCY,1003998,573.99
"Department for Business, Innovation and Skills","Department for Business, Innovation and Skills",09/08/2010,Car Hire and Leasing,Ministerial and Parliamentary Support Team - Ministerial and Parliamentary Support Team,GOVERNMENT CAR AND DESPATCH AGENCY,1004040,580.24
"Department for Business, Innovation and Skills","Department for Business, Innovation and Skills",09/08/2010,Car Hire and Leasing,Ministerial and Parliamentary Support Team - Ministerial and Parliamentary Support Team,GOVERNMENT CAR AND DESPATCH AGENCY,1003965,586.78
"Department for Business, Innovation and Skills","Department for Business, Innovation and Skills",03/08/2010,Car Hire and Leasing,"Legal, People & Communications Group - Legal",ARVAL (UK) LTD,1002837,605.7125
"Department for Business, Innovation and Skills","Department for Business, Innovation and Skills",09/08/2010,Car Hire and Leasing,Ministerial and Parliamentary Support Team - Ministerial and Parliamentary Support Team,GOVERNMENT CAR AND DESPATCH AGENCY,1003960,621.22
"Department for Business, Innovation and Skills","Department for Business, Innovation and Skills",05/08/2010,Car Hire and Leasing,Ministerial and Parliamentary Support Team - Ministerial and Parliamentary Support Team,GOVERNMENT CAR AND DESPATCH AGENCY,1003583,683.24
"Department for Business, Innovation and Skills","Department for Business, Innovation and Skills",05/08/2010,Car Hire and Leasing,Ministerial and Parliamentary Support Team - Ministerial and Parliamentary Support Team,GOVERNMENT CAR AND DESPATCH AGENCY,1003583,683.24
"Department for Business, Innovation and Skills","Department for Business, Innovation and Skills",09/08/2010,Car Hire and Leasing,Ministerial and Parliamentary Support Team - Ministerial and Parliamentary Support Team,GOVERNMENT CAR AND DESPATCH AGENCY,1003975,696.1
"Department for Business, Innovation and Skills","Department for Business, Innovation and Skills",09/08/2010,Car Hire and Leasing,Ministerial and Parliamentary Support Team - Ministerial and Parliamentary Support Team,GOVERNMENT CAR AND DESPATCH AGENCY,1003999,719.14
"Department for Business, Innovation and Skills","Department for Business, Innovation and Skills",09/08/2010,Car Hire and Leasing,Ministerial and Parliamentary Support Team - Ministerial and Parliamentary Support Team,GOVERNMENT CAR AND DESPATCH AGENCY,1003938,771.99
"Department for Business, Innovation and Skills","Department for Business, Innovation and Skills",05/08/2010,Car Hire and Leasing,Ministerial and Parliamentary Support Team - Ministerial and Parliamentary Support Team,GOVERNMENT CAR AND DESPATCH AGENCY,1003613,772.47
"Department for Business, Innovation and Skills","Department for Business, Innovation and Skills",05/08/2010,Car Hire and Leasing,Ministerial and Parliamentary Support Team - Ministerial and Parliamentary Support Team,GOVERNMENT CAR AND DESPATCH AGENCY,1003576,781.34
"Department for Business, Innovation and Skills","Department for Business, Innovation and Skills",09/08/2010,Car Hire and Leasing,Ministerial and Parliamentary Support Team - Ministerial and Parliamentary Support Team,GOVERNMENT CAR AND DESPATCH AGENCY,1003950,785.01
"Department for Business, Innovation and Skills","Department for Business, Innovation and Skills",09/08/2010,Car Hire and Leasing,Ministerial and Parliamentary Support Team - Ministerial and Parliamentary Support Team,GOVERNMENT CAR AND DESPATCH AGENCY,1004044,807.48
"Department for Business, Innovation and Skills","Department for Business, Innovation and Skills",09/08/2010,Car Hire and Leasing,Ministerial and Parliamentary Support Team - Ministerial and Parliamentary Support Team,GOVERNMENT CAR AND DESPATCH AGENCY,1003927,819.38
"Department for Business, Innovation and Skills","Department for Business, Innovation and Skills",09/08/2010,Car Hire and Leasing,Ministerial and Parliamentary Support Team - Ministerial and Parliamentary Support Team,GOVERNMENT CAR AND DESPATCH AGENCY,1003942,864.83
"Department for Business, Innovation and Skills","Department for Business, Innovation and Skills",05/08/2010,Car Hire and Leasing,Ministerial and Parliamentary Support Team - Ministerial and Parliamentary Support Team,GOVERNMENT CAR AND DESPATCH AGENCY,1003578,903.6
"Department for Business, Innovation and Skills","Department for Business, Innovation and Skills",09/08/2010,Car Hire and Leasing,Ministerial and Parliamentary Support Team - Ministerial and Parliamentary Support Team,GOVERNMENT CAR AND DESPATCH AGENCY,1003995,1046.02
"Department for Business, Innovation and Skills","Department for Business, Innovation and Skills",09/08/2010,Car Hire and Leasing,Ministerial and Parliamentary Support Team - Ministerial and Parliamentary Support Team,GOVERNMENT CAR AND DESPATCH AGENCY,1003916,1061.37
"Department for Business, Innovation and Skills","Department for Business, Innovation and Skills",09/08/2010,Car Hire and Leasing,Ministerial and Parliamentary Support Team - Ministerial and Parliamentary Support Team,GOVERNMENT CAR AND DESPATCH AGENCY,1003923,1180.82
"Department for Business, Innovation and Skills","Department for Business, Innovation and Skills",04/08/2010,Car Hire and Leasing,GOVERNMENT OFFICE FOR SCIENCE - GOVERNMENT OFFICE FOR SCIENCE,GOVERNMENT CAR AND DESPATCH AGENCY,1003501,1772.61
"Department for Business, Innovation and Skills","Department for Business, Innovation and Skills",20/08/2010,Car Hire and Leasing,Ministerial and Parliamentary Support Team - Ministerial and Parliamentary Support Team,GOVERNMENT CAR AND DESPATCH AGENCY,1005018,17397.4
"Department for Business, Innovation and Skills","Department for Business, Innovation and Skills",20/08/2010,Car Hire and Leasing,Ministerial and Parliamentary Support Team - Ministerial and Parliamentary Support Team,GOVERNMENT CAR AND DESPATCH AGENCY,1005015,24625.7
"Department for Business, Innovation and Skills","Department for Business, Innovation and Skills",19/08/2010,Hire of Agency Staff (Professional/Management),"Legal, People & Communications Group - HRCM - Human Resources and Change Management Directorate",TJNVS CONSULTING LTD,1004729,-14366.725
"Department for Business, Innovation and Skills","Department for Business, Innovation and Skills",11/08/2010,Hire of Agency Staff (Professional/Management),Finance & Commercial Group - Finance Group,MICHAEL PAGE INTERNATIONAL RECRUITMENT LTD,1004187,-2331.04725
"Department for Business, Innovation and Skills","Department for Business, Innovation and Skills",12/08/2010,Hire of Agency Staff (Professional/Management),"Legal, People & Communications Group - Communications Directorate",HUDSON GLOBAL RESOURCES LTD,1004310,-740.25
"Department for Business, Innovation and Skills","Department for Business, Innovation and Skills",09/08/2010,Hire of Agency Staff (Professional/Management),Business Group - Information Economy,ADECCO UK LTD,1003746,616.734
"Department for Business, Innovation and Skills","Department for Business, Innovation and Skills",03/08/2010,Hire of Agency Staff (Professional/Management),Business Group - Information Economy,ADECCO UK LTD,1003111,618.99
"Department for Business, Innovation and Skills","Department for Business, Innovation and Skills",19/08/2010,Hire of Agency Staff (Professional/Management),"Legal, People & Communications Group - HRCM - Human Resources and Change Management Directorate",TJNVS CONSULTING LTD,1004728,699.7125
"Department for Business, Innovation and Skills","Department for Business, Innovation and Skills",11/08/2010,Hire of Agency Staff (Professional/Management),Finance & Commercial Group - Finance Group,MICHAEL PAGE INTERNATIONAL RECRUITMENT LTD,1004184,705
"Department for Business, Innovation and Skills","Department for Business, Innovation and Skills",13/08/2010,Hire of Agency Staff (Professional/Management),"Legal, People & Communications Group - Communications Directorate",COI COMMUNICATIONS,1004385,722.625
"Department for Business, Innovation and Skills","Department for Business, Innovation and Skills",31/08/2010,Hire of Agency Staff (Professional/Management),Finance & Commercial Group - Finance Group,MICHAEL PAGE INTERNATIONAL RECRUITMENT LTD,1005496,725.774
"Department for Business, Innovation and Skills","Department for Business, Innovation and Skills",12/08/2010,Hire of Agency Staff (Professional/Management),"Legal, People & Communications Group - Communications Directorate",HUDSON GLOBAL RESOURCES LTD,1004310,740.25
"Department for Business, Innovation and Skills","Department for Business, Innovation and Skills",12/08/2010,Hire of Agency Staff (Professional/Management),"Legal, People & Communications Group - Communications Directorate",HUDSON GLOBAL RESOURCES LTD,1004310,740.25
"Department for Business, Innovation and Skills","Department for Business, Innovation and Skills",09/08/2010,Hire of Agency Staff (Professional/Management),Universities and Skills Group - USG Admin,Reed Personnel Services Ltd,1003816,753.8565
"Department for Business, Innovation and Skills","Department for Business, Innovation and Skills",18/08/2010,Hire of Agency Staff (Professional/Management),Business Group - Information Economy,ADECCO UK LTD,1004498,841.9815
"Department for Business, Innovation and Skills","Department for Business, Innovation and Skills",03/08/2010,Hire of Agency Staff (Professional/Management),Business Group - Information Economy,ADECCO UK LTD,1002867,847.56275
"Department for Business, Innovation and Skills","Department for Business, Innovation and Skills",10/08/2010,Hire of Agency Staff (Professional/Management),Universities and Skills Group - USG Admin,Reed Personnel Services Ltd,1003949,864.71775
"Department for Business, Innovation and Skills","Department for Business, Innovation and Skills",02/08/2010,Hire of Agency Staff (Professional/Management),Ministerial and Parliamentary Support Team - Ministerial and Parliamentary Support Team,ADECCO UK LTD,1003115,894.44525
"Department for Business, Innovation and Skills","Department for Business, Innovation and Skills",03/08/2010,Hire of Agency Staff (Professional/Management),Ministerial and Parliamentary Support Team - Ministerial and Parliamentary Support Team,ADECCO UK LTD,1003116,894.44525
"Department for Business, Innovation and Skills","Department for Business, Innovation and Skills",04/08/2010,Hire of Agency Staff (Professional/Management),"Legal, People & Communications Group - Communications Directorate",HUDSON GLOBAL RESOURCES LTD,1003435,987
"Department for Business, Innovation and Skills","Department for Business, Innovation and Skills",17/08/2010,Hire of Agency Staff (Professional/Management),"Legal, People & Communications Group - Communications Directorate",HUDSON GLOBAL RESOURCES LTD,1004577,1110.375
"Department for Business, Innovation and Skills","Department for Business, Innovation and Skills",20/08/2010,Hire of Agency Staff (Professional/Management),"Legal, People & Communications Group - Communications Directorate",MICHAEL PAGE INTERNATIONAL RECRUITMENT LTD,1004844,1348.2655
"Department for Business, Innovation and Skills","Department for Business, Innovation and Skills",31/08/2010,Hire of Agency Staff (Professional/Management),Finance & Commercial Group - Finance Group,MICHAEL PAGE INTERNATIONAL RECRUITMENT LTD,1005496,1406.88625
"Department for Business, Innovation and Skills","Department for Business, Innovation and Skills",19/08/2010,Hire of Agency Staff (Professional/Management),"Legal, People & Communications Group - HRCM - Human Resources and Change Management Directorate",TJNVS CONSULTING LTD,1004729,1441.725
"Department for Business, Innovation and Skills","Department for Business, Innovation and Skills",12/08/2010,Hire of Agency Staff (Professional/Management),"Legal, People & Communications Group - Communications Directorate",COI COMMUNICATIONS,1004426,1499.59375
"Department for Business, Innovation and Skills","Department for Business, Innovation and Skills",09/08/2010,Hire of Agency Staff (Professional/Management),Finance & Commercial Group - Finance Group,PARITY RESOURCES LTD,1003861,1517.5125
"Department for Business, Innovation and Skills","Department for Business, Innovation and Skills",20/08/2010,Hire of Agency Staff (Professional/Management),Finance & Commercial Group - Finance Group,MICHAEL PAGE INTERNATIONAL RECRUITMENT LTD,1004973,1735.88625
"Department for Business, Innovation and Skills","Department for Business, Innovation and Skills",26/08/2010,Hire of Agency Staff (Professional/Management),"Legal, People & Communications Group - Communications Directorate",MICHAEL PAGE INTERNATIONAL RECRUITMENT LTD,1005268,1797.64425
"Department for Business, Innovation and Skills","Department for Business, Innovation and Skills",03/08/2010,Hire of Agency Staff (Professional/Management),Finance & Commercial Group - Finance Group,MICHAEL PAGE INTERNATIONAL RECRUITMENT LTD,1003361,1983.87
"Department for Business, Innovation and Skills","Department for Business, Innovation and Skills",11/08/2010,Hire of Agency Staff (Professional/Management),Finance & Commercial Group - Finance Group,MICHAEL PAGE INTERNATIONAL RECRUITMENT LTD,1004187,1983.87
"Department for Business, Innovation and Skills","Department for Business, Innovation and Skills",24/08/2010,Hire of Agency Staff (Professional/Management),Finance & Commercial Group - Finance Group,MICHAEL PAGE INTERNATIONAL RECRUITMENT LTD,1005172,1983.87
"Department for Business, Innovation and Skills","Department for Business, Innovation and Skills",19/08/2010,Hire of Agency Staff (Professional/Management),Finance & Commercial Group - Finance Group,MICHAEL PAGE INTERNATIONAL RECRUITMENT LTD,1004846,2033.46675
"Department for Business, Innovation and Skills","Department for Business, Innovation and Skills",11/08/2010,Hire of Agency Staff (Professional/Management),Finance & Commercial Group - Finance Group,MICHAEL PAGE INTERNATIONAL RECRUITMENT LTD,1004196,2094.49625
"Department for Business, Innovation and Skills","Department for Business, Innovation and Skills",11/08/2010,Hire of Agency Staff (Professional/Management),Finance & Commercial Group - Finance Group,MICHAEL PAGE INTERNATIONAL RECRUITMENT LTD,1004187,2331.04725
"Department for Business, Innovation and Skills","Department for Business, Innovation and Skills",03/08/2010,Hire of Agency Staff (Professional/Management),Finance & Commercial Group - Finance Group,MICHAEL PAGE INTERNATIONAL RECRUITMENT LTD,1003359,2379.375
"Department for Business, Innovation and Skills","Department for Business, Innovation and Skills",03/08/2010,Hire of Agency Staff (Professional/Management),Finance & Commercial Group - Finance Group,MICHAEL PAGE INTERNATIONAL RECRUITMENT LTD,1003362,2379.375
"Department for Business, Innovation and Skills","Department for Business, Innovation and Skills",13/08/2010,Hire of Agency Staff (Professional/Management),"Legal, People & Communications Group - Communications Directorate",MICHAEL PAGE INTERNATIONAL RECRUITMENT LTD,1004320,2696.531
"Department for Business, Innovation and Skills","Department for Business, Innovation and Skills",11/08/2010,Hire of Agency Staff (Professional/Management),Finance & Commercial Group - Finance Group,MICHAEL PAGE INTERNATIONAL RECRUITMENT LTD,1004178,2709.926
"Department for Business, Innovation and Skills","Department for Business, Innovation and Skills",11/08/2010,Hire of Agency Staff (Professional/Management),Finance & Commercial Group - Finance Group,MICHAEL PAGE INTERNATIONAL RECRUITMENT LTD,1004184,2820
"Department for Business, Innovation and Skills","Department for Business, Innovation and Skills",04/08/2010,Hire of Agency Staff (Professional/Management),Finance & Commercial Group - Finance Group,MICHAEL PAGE INTERNATIONAL RECRUITMENT LTD,1003408,2880.9825
"Department for Business, Innovation and Skills","Department for Business, Innovation and Skills",12/08/2010,Hire of Agency Staff (Professional/Management),"Legal, People & Communications Group - Communications Directorate",COI COMMUNICATIONS,1004426,3070.8625
"Department for Business, Innovation and Skills","Department for Business, Innovation and Skills",06/08/2010,Hire of Agency Staff (Professional/Management),"Legal, People & Communications Group - Communications Directorate",MICHAEL PAGE INTERNATIONAL RECRUITMENT LTD,1003521,3370.66375
"Department for Business, Innovation and Skills","Department for Business, Innovation and Skills",03/08/2010,Hire of Agency Staff (Professional/Management),Finance & Commercial Group - Finance Group,MICHAEL PAGE INTERNATIONAL RECRUITMENT LTD,1003364,3525
"Department for Business, Innovation and Skills","Department for Business, Innovation and Skills",12/08/2010,Hire of Agency Staff (Professional/Management),"Legal, People & Communications Group - Communications Directorate",COI COMMUNICATIONS,1004380,3793.78125
"Department for Business, Innovation and Skills","Department for Business, Innovation and Skills",31/08/2010,Hire of Agency Staff (Professional/Management),"Legal, People & Communications Group - Communications Directorate",COI COMMUNICATIONS,1005491,3927
"Department for Business, Innovation and Skills","Department for Business, Innovation and Skills",12/08/2010,Hire of Agency Staff (Professional/Management),"Legal, People & Communications Group - Communications Directorate",COI COMMUNICATIONS,1004382,4529.14
"Department for Business, Innovation and Skills","Department for Business, Innovation and Skills",12/08/2010,Hire of Agency Staff (Professional/Management),"Legal, People & Communications Group - Communications Directorate",COI COMMUNICATIONS,1004426,5040.45625
"Department for Business, Innovation and Skills","Department for Business, Innovation and Skills",02/08/2010,Hire of Agency Staff (Professional/Management),"Innovation, Enterprise & Better Regulation Executive - Better Regulation Executive (BRE)",SALOMON WHITTLE LTD,1003134,5775
"Department for Business, Innovation and Skills","Department for Business, Innovation and Skills",19/08/2010,Hire of Agency Staff (Professional/Management),"Legal, People & Communications Group - HRCM - Human Resources and Change Management Directorate",TJNVS CONSULTING LTD,1004727,5992.5
"Department for Business, Innovation and Skills","Department for Business, Innovation and Skills",25/08/2010,Hire of Agency Staff (Professional/Management),"Legal, People & Communications Group - Communications Directorate",COI COMMUNICATIONS,1005184,9613.85
"Department for Business, Innovation and Skills","Department for Business, Innovation and Skills",17/08/2010,Hire of Agency Staff (Professional/Management),"Business Group - Solutions for Business, Low Carbon & Services",CONSTRUCTION INDUSTRY COUNCIL,1004639,11759.16
"Department for Business, Innovation and Skills","Department for Business, Innovation and Skills",19/08/2010,Hire of Agency Staff (Professional/Management),"Legal, People & Communications Group - HRCM - Human Resources and Change Management Directorate",TJNVS CONSULTING LTD,1004729,14366.725
"Department for Business, Innovation and Skills","Department for Business, Innovation and Skills",19/08/2010,Hire of Agency Staff (Professional/Management),"Legal, People & Communications Group - HRCM - Human Resources and Change Management Directorate",TJNVS CONSULTING LTD,1004749,21972.5
"Department for Business, Innovation and Skills","Department for Business, Innovation and Skills",10/08/2010,Hire of Agency Staff (Clerical/Secretariat/Other),Finance & Commercial Group - Information and Workplace Strategies,BROOK STREET (UK) LTD,1003992,-28381.97225
"Department for Business, Innovation and Skills","Department for Business, Innovation and Skills",06/08/2010,Hire of Agency Staff (Clerical/Secretariat/Other),Finance & Commercial Group - Finance Group,VENN GROUP LTD,1003642,-1067.7695
"Department for Business, Innovation and Skills","Department for Business, Innovation and Skills",09/08/2010,Hire of Agency Staff (Clerical/Secretariat/Other),"Legal, People & Communications Group - Legal",ADECCO UK LTD,1003747,-781.90375
"Department for Business, Innovation and Skills","Department for Business, Innovation and Skills",10/08/2010,Hire of Agency Staff (Clerical/Secretariat/Other),Ministerial and Parliamentary Support Team - Ministerial and Parliamentary Support Team,OFFICE ANGELS LTD,1003409,-753.504
"Department for Business, Innovation and Skills","Department for Business, Innovation and Skills",10/08/2010,Hire of Agency Staff (Clerical/Secretariat/Other),"Legal, People & Communications Group - Communications Directorate",ADECCO UK LTD,1003793,-676.81175
"Department for Business, Innovation and Skills","Department for Business, Innovation and Skills",31/08/2010,Hire of Agency Staff (Clerical/Secretariat/Other),"Legal, People & Communications Group - Legal",ADECCO UK LTD,1005446,-654.11075
"Department for Business, Innovation and Skills","Department for Business, Innovation and Skills",23/08/2010,Hire of Agency Staff (Clerical/Secretariat/Other),Business Group - Advanced Manufacturing Industries,ADECCO UK LTD,1004907,-565.51575
"Department for Business, Innovation and Skills","Department for Business, Innovation and Skills",05/08/2010,Hire of Agency Staff (Clerical/Secretariat/Other),Universities and Skills Group - USG Admin,REED EMPLOYMENT LTD,1003560,-542.4975
"Department for Business, Innovation and Skills","Department for Business, Innovation and Skills",02/08/2010,Hire of Agency Staff (Clerical/Secretariat/Other),Ministerial and Parliamentary Support Team - Ministerial and Parliamentary Support Team,OFFICE ANGELS LTD,1003120,508.48125
"Department for Business, Innovation and Skills","Department for Business, Innovation and Skills",17/08/2010,Hire of Agency Staff (Clerical/Secretariat/Other),Ministerial and Parliamentary Support Team - Ministerial and Parliamentary Support Team,OFFICE ANGELS LTD,1004658,508.48125
"Department for Business, Innovation and Skills","Department for Business, Innovation and Skills",19/08/2010,Hire of Agency Staff (Clerical/Secretariat/Other),Ministerial and Parliamentary Support Team - Ministerial and Parliamentary Support Team,OFFICE ANGELS LTD,1004833,508.48125
"Department for Business, Innovation and Skills","Department for Business, Innovation and Skills",19/08/2010,Hire of Agency Staff (Clerical/Secretariat/Other),Ministerial and Parliamentary Support Team - Ministerial and Parliamentary Support Team,OFFICE ANGELS LTD,1004838,514.368
"Department for Business, Innovation and Skills","Department for Business, Innovation and Skills",23/08/2010,Hire of Agency Staff (Clerical/Secretariat/Other),Shareholder Executive - Shareholder Executive,BROOK STREET (UK) LTD,1005094,523.11
"Department for Business, Innovation and Skills","Department for Business, Innovation and Skills",25/08/2010,Hire of Agency Staff (Clerical/Secretariat/Other),Finance & Commercial Group - Information and Workplace Strategies,ADECCO UK LTD,1005181,524.849
"Department for Business, Innovation and Skills","Department for Business, Innovation and Skills",31/08/2010,Hire of Agency Staff (Clerical/Secretariat/Other),Shareholder Executive - Shareholder Executive,BROOK STREET (UK) LTD,1005551,541.7925
"Department for Business, Innovation and Skills","Department for Business, Innovation and Skills",05/08/2010,Hire of Agency Staff (Clerical/Secretariat/Other),Universities and Skills Group - USG Admin,REED EMPLOYMENT LTD,1003560,542.4975
"Department for Business, Innovation and Skills","Department for Business, Innovation and Skills",19/08/2010,Hire of Agency Staff (Clerical/Secretariat/Other),Finance & Commercial Group - Finance Group,VENN GROUP LTD,1004825,543.59025
"Department for Business, Innovation and Skills","Department for Business, Innovation and Skills",03/08/2010,Hire of Agency Staff (Clerical/Secretariat/Other),Fair Markets Group Summary - Europe Directorate,ADECCO UK LTD,1003297,549.95875
"Department for Business, Innovation and Skills","Department for Business, Innovation and Skills",09/08/2010,Hire of Agency Staff (Clerical/Secretariat/Other),Business Group - Advanced Manufacturing Industries,ADECCO UK LTD,1003789,559.4175
"Department for Business, Innovation and Skills","Department for Business, Innovation and Skills",03/08/2010,Hire of Agency Staff (Clerical/Secretariat/Other),Business Group - Advanced Manufacturing Industries,ADECCO UK LTD,1003085,562.97775
"Department for Business, Innovation and Skills","Department for Business, Innovation and Skills",24/08/2010,Hire of Agency Staff (Clerical/Secretariat/Other),Fair Markets Group Summary - Corporate Law and Governance,ADECCO UK LTD,1004900,564.987
"Department for Business, Innovation and Skills","Department for Business, Innovation and Skills",23/08/2010,Hire of Agency Staff (Clerical/Secretariat/Other),Business Group - Advanced Manufacturing Industries,ADECCO UK LTD,1004907,565.51575
"Department for Business, Innovation and Skills","Department for Business, Innovation and Skills",23/08/2010,Hire of Agency Staff (Clerical/Secretariat/Other),Business Group - Advanced Manufacturing Industries,ADECCO UK LTD,1004907,565.51575
"Department for Business, Innovation and Skills","Department for Business, Innovation and Skills",23/08/2010,Hire of Agency Staff (Clerical/Secretariat/Other),Finance & Commercial Group - Information and Workplace Strategies,BROOK STREET (UK) LTD,1005111,574.481
"Department for Business, Innovation and Skills","Department for Business, Innovation and Skills",17/08/2010,Hire of Agency Staff (Clerical/Secretariat/Other),Business Group - Advanced Manufacturing Industries,ADECCO UK LTD,1004540,576.032
"Department for Business, Innovation and Skills","Department for Business, Innovation and Skills",02/08/2010,Hire of Agency Staff (Clerical/Secretariat/Other),Ministerial and Parliamentary Support Team - Ministerial and Parliamentary Support Team,OFFICE ANGELS LTD,1003119,577.536
"Department for Business, Innovation and Skills","Department for Business, Innovation and Skills",04/08/2010,Hire of Agency Staff (Clerical/Secretariat/Other),Ministerial and Parliamentary Support Team - Ministerial and Parliamentary Support Team,OFFICE ANGELS LTD,1003410,577.536
"Department for Business, Innovation and Skills","Department for Business, Innovation and Skills",13/08/2010,Hire of Agency Staff (Clerical/Secretariat/Other),"Innovation, Enterprise & Better Regulation Executive - Enterprise Directorate",BROOK STREET (UK) LTD,1004454,580.06225
"Department for Business, Innovation and Skills","Department for Business, Innovation and Skills",31/08/2010,Hire of Agency Staff (Clerical/Secretariat/Other),Ministerial and Parliamentary Support Team - Ministerial and Parliamentary Support Team,ADECCO UK LTD,1005468,584.257
"Department for Business, Innovation and Skills","Department for Business, Innovation and Skills",24/08/2010,Hire of Agency Staff (Clerical/Secretariat/Other),"Legal, People & Communications Group - HRCM - Human Resources and Change Management Directorate",BROOK STREET (UK) LTD,1005114,587.876
"Department for Business, Innovation and Skills","Department for Business, Innovation and Skills",10/08/2010,Hire of Agency Staff (Clerical/Secretariat/Other),Ministerial and Parliamentary Support Team - Ministerial and Parliamentary Support Team,ADECCO UK LTD,1003786,588.33425
"Department for Business, Innovation and Skills","Department for Business, Innovation and Skills",31/08/2010,Hire of Agency Staff (Clerical/Secretariat/Other),Ministerial and Parliamentary Support Team - Ministerial and Parliamentary Support Team,ADECCO UK LTD,1005464,588.33425
"Department for Business, Innovation and Skills","Department for Business, Innovation and Skills",10/08/2010,Hire of Agency Staff (Clerical/Secretariat/Other),Shareholder Executive - Shareholder Executive,BROOK STREET (UK) LTD,1004078,593.1635
"Department for Business, Innovation and Skills","Department for Business, Innovation and Skills",16/08/2010,Hire of Agency Staff (Clerical/Secretariat/Other),"Legal, People & Communications Group - Communications Directorate",ADECCO UK LTD,1004522,596.524
"Department for Business, Innovation and Skills","Department for Business, Innovation and Skills",20/08/2010,Hire of Agency Staff (Clerical/Secretariat/Other),"Legal, People & Communications Group - Communications Directorate",ADECCO UK LTD,1004914,596.524
"Department for Business, Innovation and Skills","Department for Business, Innovation and Skills",11/08/2010,Hire of Agency Staff (Clerical/Secretariat/Other),Ministerial and Parliamentary Support Team - Ministerial and Parliamentary Support Team,Reed Personnel Services Ltd,1004155,602.12875
"Department for Business, Innovation and Skills","Department for Business, Innovation and Skills",02/08/2010,Hire of Agency Staff (Clerical/Secretariat/Other),Strategy Group - Strategy Directorate,ADECCO UK LTD,1003114,604.58
"Department for Business, Innovation and Skills","Department for Business, Innovation and Skills",09/08/2010,Hire of Agency Staff (Clerical/Secretariat/Other),Strategy Group - Strategy Directorate,ADECCO UK LTD,1003784,609.34
"Department for Business, Innovation and Skills","Department for Business, Innovation and Skills",19/08/2010,Hire of Agency Staff (Clerical/Secretariat/Other),Ministerial and Parliamentary Support Team - Ministerial and Parliamentary Support Team,Reed Personnel Services Ltd,1004828,609.5195
"Department for Business, Innovation and Skills","Department for Business, Innovation and Skills",31/08/2010,Hire of Agency Staff (Clerical/Secretariat/Other),"Legal, People & Communications Group - Communications Directorate",ADECCO UK LTD,1005461,612.86825
"Department for Business, Innovation and Skills","Department for Business, Innovation and Skills",31/08/2010,Hire of Agency Staff (Clerical/Secretariat/Other),"Legal, People & Communications Group - HRCM - Human Resources and Change Management Directorate",BROOK STREET (UK) LTD,1005517,615.8645
"Department for Business, Innovation and Skills","Department for Business, Innovation and Skills",26/08/2010,Hire of Agency Staff (Clerical/Secretariat/Other),Ministerial and Parliamentary Support Team - Ministerial and Parliamentary Support Team,Reed Personnel Services Ltd,1005261,617.92075
"Department for Business, Innovation and Skills","Department for Business, Innovation and Skills",17/08/2010,Hire of Agency Staff (Clerical/Secretariat/Other),Ministerial and Parliamentary Support Team - Ministerial and Parliamentary Support Team,OFFICE ANGELS LTD,1004626,622.656
"Department for Business, Innovation and Skills","Department for Business, Innovation and Skills",24/08/2010,Hire of Agency Staff (Clerical/Secretariat/Other),"Legal, People & Communications Group - Priority Projects Drectorate",ADECCO UK LTD,1004901,624.2305
"Department for Business, Innovation and Skills","Department for Business, Innovation and Skills",17/08/2010,Hire of Agency Staff (Clerical/Secretariat/Other),"Legal, People & Communications Group - Priority Projects Drectorate",ADECCO UK LTD,1004521,632.5025
"Department for Business, Innovation and Skills","Department for Business, Innovation and Skills",10/08/2010,Hire of Agency Staff (Clerical/Secretariat/Other),"Legal, People & Communications Group - Priority Projects Drectorate",ADECCO UK LTD,1003795,636.62675
"Department for Business, Innovation and Skills","Department for Business, Innovation and Skills",12/08/2010,Hire of Agency Staff (Clerical/Secretariat/Other),Ministerial and Parliamentary Support Team - Ministerial and Parliamentary Support Team,OFFICE ANGELS LTD,1004397,640.704
"Department for Business, Innovation and Skills","Department for Business, Innovation and Skills",09/08/2010,Hire of Agency Staff (Clerical/Secretariat/Other),"Legal, People & Communications Group - Communications Directorate",ADECCO UK LTD,1003781,650.104
"Department for Business, Innovation and Skills","Department for Business, Innovation and Skills",03/08/2010,Hire of Agency Staff (Clerical/Secretariat/Other),Finance & Commercial Group - Finance Group,VENN GROUP LTD,1002967,653.6055
"Department for Business, Innovation and Skills","Department for Business, Innovation and Skills",31/08/2010,Hire of Agency Staff (Clerical/Secretariat/Other),"Legal, People & Communications Group - Legal",ADECCO UK LTD,1005446,654.11075
"Department for Business, Innovation and Skills","Department for Business, Innovation and Skills",31/08/2010,Hire of Agency Staff (Clerical/Secretariat/Other),"Legal, People & Communications Group - Legal",ADECCO UK LTD,1005446,654.11075
"Department for Business, Innovation and Skills","Department for Business, Innovation and Skills",31/08/2010,Hire of Agency Staff (Clerical/Secretariat/Other),Finance & Commercial Group - Information and Workplace Strategies,BROOK STREET (UK) LTD,1005513,658.55225
"Department for Business, Innovation and Skills","Department for Business, Innovation and Skills",23/08/2010,Hire of Agency Staff (Clerical/Secretariat/Other),Business Group - Advanced Manufacturing Industries,ADECCO UK LTD,1004904,660.10325
"Department for Business, Innovation and Skills","Department for Business, Innovation and Skills",03/08/2010,Hire of Agency Staff (Clerical/Secretariat/Other),"Legal, People & Communications Group - Priority Projects Drectorate",ADECCO UK LTD,1003107,661.4075
"Department for Business, Innovation and Skills","Department for Business, Innovation and Skills",17/08/2010,Hire of Agency Staff (Clerical/Secretariat/Other),Finance & Commercial Group - Information and Workplace Strategies,BROOK STREET (UK) LTD,1004621,663.22875
"Department for Business, Innovation and Skills","Department for Business, Innovation and Skills",17/08/2010,Hire of Agency Staff (Clerical/Secretariat/Other),Ministerial and Parliamentary Support Team - Ministerial and Parliamentary Support Team,OFFICE ANGELS LTD,1004628,667.776
"Department for Business, Innovation and Skills","Department for Business, Innovation and Skills",04/08/2010,Hire of Agency Staff (Clerical/Secretariat/Other),Ministerial and Parliamentary Support Team - Ministerial and Parliamentary Support Team,OFFICE ANGELS LTD,1003412,672.288
"Department for Business, Innovation and Skills","Department for Business, Innovation and Skills",16/08/2010,Hire of Agency Staff (Clerical/Secretariat/Other),"Legal, People & Communications Group - Communications Directorate",ADECCO UK LTD,1004525,676.612
"Department for Business, Innovation and Skills","Department for Business, Innovation and Skills",20/08/2010,Hire of Agency Staff (Clerical/Secretariat/Other),"Legal, People & Communications Group - Communications Directorate",ADECCO UK LTD,1004903,676.612
"Department for Business, Innovation and Skills","Department for Business, Innovation and Skills",10/08/2010,Hire of Agency Staff (Clerical/Secretariat/Other),"Legal, People & Communications Group - Communications Directorate",ADECCO UK LTD,1003793,676.81175
"Department for Business, Innovation and Skills","Department for Business, Innovation and Skills",10/08/2010,Hire of Agency Staff (Clerical/Secretariat/Other),"Legal, People & Communications Group - Communications Directorate",ADECCO UK LTD,1003793,676.81175
"Department for Business, Innovation and Skills","Department for Business, Innovation and Skills",03/08/2010,Hire of Agency Staff (Clerical/Secretariat/Other),Business Group - Advanced Manufacturing Industries,ADECCO UK LTD,1003110,680.10175
"Department for Business, Innovation and Skills","Department for Business, Innovation and Skills",09/08/2010,Hire of Agency Staff (Clerical/Secretariat/Other),Business Group - Advanced Manufacturing Industries,ADECCO UK LTD,1003791,680.10175
"Department for Business, Innovation and Skills","Department for Business, Innovation and Skills",17/08/2010,Hire of Agency Staff (Clerical/Secretariat/Other),Business Group - Advanced Manufacturing Industries,ADECCO UK LTD,1004541,680.10175
"Department for Business, Innovation and Skills","Department for Business, Innovation and Skills",02/08/2010,Hire of Agency Staff (Clerical/Secretariat/Other),Ministerial and Parliamentary Support Team - Ministerial and Parliamentary Support Team,OFFICE ANGELS LTD,1003127,685.824
"Department for Business, Innovation and Skills","Department for Business, Innovation and Skills",16/08/2010,Hire of Agency Staff (Clerical/Secretariat/Other),Shareholder Executive - Shareholder Executive,BROOK STREET (UK) LTD,1004562,686.576
"Department for Business, Innovation and Skills","Department for Business, Innovation and Skills",23/08/2010,Hire of Agency Staff (Clerical/Secretariat/Other),"Innovation, Enterprise & Better Regulation Executive - Enterprise Directorate",ADECCO UK LTD,1004909,699.2895
"Department for Business, Innovation and Skills","Department for Business, Innovation and Skills",19/08/2010,Hire of Agency Staff (Clerical/Secretariat/Other),Ministerial and Parliamentary Support Team - Ministerial and Parliamentary Support Team,OFFICE ANGELS LTD,1004836,703.872
"Department for Business, Innovation and Skills","Department for Business, Innovation and Skills",03/08/2010,Hire of Agency Staff (Clerical/Secretariat/Other),Shareholder Executive - Shareholder Executive,BROOK STREET (UK) LTD,1003336,705.2585
"Department for Business, Innovation and Skills","Department for Business, Innovation and Skills",03/08/2010,Hire of Agency Staff (Clerical/Secretariat/Other),Shareholder Executive - Shareholder Executive,BROOK STREET (UK) LTD,1003329,709.935
"Department for Business, Innovation and Skills","Department for Business, Innovation and Skills",12/08/2010,Hire of Agency Staff (Clerical/Secretariat/Other),Ministerial and Parliamentary Support Team - Ministerial and Parliamentary Support Team,OFFICE ANGELS LTD,1004407,721.92
"Department for Business, Innovation and Skills","Department for Business, Innovation and Skills",10/08/2010,Hire of Agency Staff (Clerical/Secretariat/Other),Shareholder Executive - Shareholder Executive,BROOK STREET (UK) LTD,1004079,728.6175
"Department for Business, Innovation and Skills","Department for Business, Innovation and Skills",10/08/2010,Hire of Agency Staff (Clerical/Secretariat/Other),Shareholder Executive - Shareholder Executive,BROOK STREET (UK) LTD,1004080,728.6175
"Department for Business, Innovation and Skills","Department for Business, Innovation and Skills",10/08/2010,Hire of Agency Staff (Clerical/Secretariat/Other),Ministerial and Parliamentary Support Team - Ministerial and Parliamentary Support Team,OFFICE ANGELS LTD,1003411,739.968
"Department for Business, Innovation and Skills","Department for Business, Innovation and Skills",19/08/2010,Hire of Agency Staff (Clerical/Secretariat/Other),Ministerial and Parliamentary Support Team - Ministerial and Parliamentary Support Team,OFFICE ANGELS LTD,1004832,739.968
"Department for Business, Innovation and Skills","Department for Business, Innovation and Skills",02/08/2010,Hire of Agency Staff (Clerical/Secretariat/Other),Shareholder Executive - Shareholder Executive,BROOK STREET (UK) LTD,1003214,742.6235
"Department for Business, Innovation and Skills","Department for Business, Innovation and Skills",23/08/2010,Hire of Agency Staff (Clerical/Secretariat/Other),Shareholder Executive - Shareholder Executive,BROOK STREET (UK) LTD,1005092,747.3
"Department for Business, Innovation and Skills","Department for Business, Innovation and Skills",31/08/2010,Hire of Agency Staff (Clerical/Secretariat/Other),Shareholder Executive - Shareholder Executive,ADECCO UK LTD,1005454,748.6865
"Department for Business, Innovation and Skills","Department for Business, Innovation and Skills",17/08/2010,Hire of Agency Staff (Clerical/Secretariat/Other),Ministerial and Parliamentary Support Team - Ministerial and Parliamentary Support Team,OFFICE ANGELS LTD,1004629,748.992
"Department for Business, Innovation and Skills","Department for Business, Innovation and Skills",17/08/2010,Hire of Agency Staff (Clerical/Secretariat/Other),Ministerial and Parliamentary Support Team - Ministerial and Parliamentary Support Team,OFFICE ANGELS LTD,1004627,748.992
"Department for Business, Innovation and Skills","Department for Business, Innovation and Skills",09/08/2010,Hire of Agency Staff (Clerical/Secretariat/Other),Finance & Commercial Group - Information and Workplace Strategies,BROOK STREET (UK) LTD,1003888,751.96475
"Department for Business, Innovation and Skills","Department for Business, Innovation and Skills",03/08/2010,Hire of Agency Staff (Clerical/Secretariat/Other),Finance & Commercial Group - Information and Workplace Strategies,ADECCO UK LTD,1003147,752.752
"Department for Business, Innovation and Skills","Department for Business, Innovation and Skills",10/08/2010,Hire of Agency Staff (Clerical/Secretariat/Other),Ministerial and Parliamentary Support Team - Ministerial and Parliamentary Support Team,OFFICE ANGELS LTD,1003409,753.504
"Department for Business, Innovation and Skills","Department for Business, Innovation and Skills",10/08/2010,Hire of Agency Staff (Clerical/Secretariat/Other),Ministerial and Parliamentary Support Team - Ministerial and Parliamentary Support Team,OFFICE ANGELS LTD,1003409,753.504
"Department for Business, Innovation and Skills","Department for Business, Innovation and Skills",12/08/2010,Hire of Agency Staff (Clerical/Secretariat/Other),Ministerial and Parliamentary Support Team - Ministerial and Parliamentary Support Team,OFFICE ANGELS LTD,1004402,753.504
"Department for Business, Innovation and Skills","Department for Business, Innovation and Skills",16/08/2010,Hire of Agency Staff (Clerical/Secretariat/Other),Shareholder Executive - Shareholder Executive,ADECCO UK LTD,1004519,764.314
"Department for Business, Innovation and Skills","Department for Business, Innovation and Skills",23/08/2010,Hire of Agency Staff (Clerical/Secretariat/Other),Shareholder Executive - Shareholder Executive,BROOK STREET (UK) LTD,1005096,775.32375
"Department for Business, Innovation and Skills","Department for Business, Innovation and Skills",31/08/2010,Hire of Agency Staff (Clerical/Secretariat/Other),"Legal, People & Communications Group - Legal",ADECCO UK LTD,1005447,776.675
"Department for Business, Innovation and Skills","Department for Business, Innovation and Skills",02/08/2010,Hire of Agency Staff (Clerical/Secretariat/Other),Finance & Commercial Group - Information and Workplace Strategies,BROOK STREET (UK) LTD,1003229,779.9885
"Department for Business, Innovation and Skills","Department for Business, Innovation and Skills",09/08/2010,Hire of Agency Staff (Clerical/Secretariat/Other),"Legal, People & Communications Group - Legal",ADECCO UK LTD,1003747,781.90375
"Department for Business, Innovation and Skills","Department for Business, Innovation and Skills",09/08/2010,Hire of Agency Staff (Clerical/Secretariat/Other),"Legal, People & Communications Group - Legal",ADECCO UK LTD,1003747,781.90375
"Department for Business, Innovation and Skills","Department for Business, Innovation and Skills",18/08/2010,Hire of Agency Staff (Clerical/Secretariat/Other),"Innovation, Enterprise & Better Regulation Executive - Better Regulation Executive (BRE)",ADECCO UK LTD,1004526,785.135
"Department for Business, Innovation and Skills","Department for Business, Innovation and Skills",20/08/2010,Hire of Agency Staff (Clerical/Secretariat/Other),Shareholder Executive - Shareholder Executive,ADECCO UK LTD,1004902,790.34025
"Department for Business, Innovation and Skills","Department for Business, Innovation and Skills",03/08/2010,Hire of Agency Staff (Clerical/Secretariat/Other),"Innovation, Enterprise & Better Regulation Executive - Better Regulation Executive (BRE)",ADECCO UK LTD,1003087,795.5455
"Department for Business, Innovation and Skills","Department for Business, Innovation and Skills",10/08/2010,Hire of Agency Staff (Clerical/Secretariat/Other),"Innovation, Enterprise & Better Regulation Executive - Better Regulation Executive (BRE)",ADECCO UK LTD,1003745,795.5455
"Department for Business, Innovation and Skills","Department for Business, Innovation and Skills",09/08/2010,Hire of Agency Staff (Clerical/Secretariat/Other),Shareholder Executive - Shareholder Executive,ADECCO UK LTD,1003774,800.75075
"Department for Business, Innovation and Skills","Department for Business, Innovation and Skills",03/08/2010,Hire of Agency Staff (Clerical/Secretariat/Other),Finance & Commercial Group - Information and Workplace Strategies,BROOK STREET (UK) LTD,1003347,806.238
"Department for Business, Innovation and Skills","Department for Business, Innovation and Skills",10/08/2010,Hire of Agency Staff (Clerical/Secretariat/Other),Finance & Commercial Group - Information and Workplace Strategies,BROOK STREET (UK) LTD,1003992,806.238
"Department for Business, Innovation and Skills","Department for Business, Innovation and Skills",17/08/2010,Hire of Agency Staff (Clerical/Secretariat/Other),Finance & Commercial Group - Information and Workplace Strategies,BROOK STREET (UK) LTD,1004563,806.238
"Department for Business, Innovation and Skills","Department for Business, Innovation and Skills",24/08/2010,Hire of Agency Staff (Clerical/Secretariat/Other),Finance & Commercial Group - Information and Workplace Strategies,BROOK STREET (UK) LTD,1005107,806.238
"Department for Business, Innovation and Skills","Department for Business, Innovation and Skills",06/08/2010,Hire of Agency Staff (Clerical/Secretariat/Other),Finance & Commercial Group - Information and Workplace Strategies,TFPL LTD,1003615,822.5705
"Department for Business, Innovation and Skills","Department for Business, Innovation and Skills",23/08/2010,Hire of Agency Staff (Clerical/Secretariat/Other),Fair Markets Group Summary - Consumer and Competition Policy,TESSA DUNSTAN,1005122,845
"Department for Business, Innovation and Skills","Department for Business, Innovation and Skills",06/08/2010,Hire of Agency Staff (Clerical/Secretariat/Other),Fair Markets Group Summary - Consumer and Competition Policy,TESSA DUNSTAN,1003652,845
"Department for Business, Innovation and Skills","Department for Business, Innovation and Skills",03/08/2010,Hire of Agency Staff (Clerical/Secretariat/Other),Ministerial and Parliamentary Support Team - Ministerial and Parliamentary Support Team,Reed Personnel Services Ltd,1003310,878.5475
"Department for Business, Innovation and Skills","Department for Business, Innovation and Skills",03/08/2010,Hire of Agency Staff (Clerical/Secretariat/Other),Ministerial and Parliamentary Support Team - Ministerial and Parliamentary Support Team,Reed Personnel Services Ltd,1003312,891.15525
"Department for Business, Innovation and Skills","Department for Business, Innovation and Skills",20/08/2010,Hire of Agency Staff (Clerical/Secretariat/Other),Strategic Policy Analysis - Strategic Policy Analysis,ADECCO UK LTD,1004539,910.07275
"Department for Business, Innovation and Skills","Department for Business, Innovation and Skills",03/08/2010,Hire of Agency Staff (Clerical/Secretariat/Other),Ministerial and Parliamentary Support Team - Ministerial and Parliamentary Support Team,Reed Personnel Services Ltd,1003311,912.176
"Department for Business, Innovation and Skills","Department for Business, Innovation and Skills",09/08/2010,Hire of Agency Staff (Clerical/Secretariat/Other),"Innovation, Enterprise & Better Regulation Executive - Enterprise Directorate",ADECCO UK LTD,1003749,929.64825
"Department for Business, Innovation and Skills","Department for Business, Innovation and Skills",02/08/2010,Hire of Agency Staff (Clerical/Secretariat/Other),"Innovation, Enterprise & Better Regulation Executive - Enterprise Directorate",ADECCO UK LTD,1003082,951.80875
"Department for Business, Innovation and Skills","Department for Business, Innovation and Skills",16/08/2010,Hire of Agency Staff (Clerical/Secretariat/Other),"Innovation, Enterprise & Better Regulation Executive - Enterprise Directorate",ADECCO UK LTD,1004493,962.983
"Department for Business, Innovation and Skills","Department for Business, Innovation and Skills",13/08/2010,Hire of Agency Staff (Clerical/Secretariat/Other),Finance & Commercial Group - Finance Group,VENN GROUP LTD,1004434,970.70275
"Department for Business, Innovation and Skills","Department for Business, Innovation and Skills",02/08/2010,Hire of Agency Staff (Clerical/Secretariat/Other),Strategic Policy Analysis - Strategic Policy Analysis,ADECCO UK LTD,1003089,982.94625
"Department for Business, Innovation and Skills","Department for Business, Innovation and Skills",06/08/2010,Hire of Agency Staff (Clerical/Secretariat/Other),Finance & Commercial Group - Finance Group,VENN GROUP LTD,1003642,995.75375
"Department for Business, Innovation and Skills","Department for Business, Innovation and Skills",10/08/2010,Hire of Agency Staff (Clerical/Secretariat/Other),Shareholder Executive - Shareholder Executive,BROOK STREET (UK) LTD,1003989,1007.7975
"Department for Business, Innovation and Skills","Department for Business, Innovation and Skills",31/08/2010,Hire of Agency Staff (Clerical/Secretariat/Other),Shareholder Executive - Shareholder Executive,BROOK STREET (UK) LTD,1005511,1007.7975
"Department for Business, Innovation and Skills","Department for Business, Innovation and Skills",23/08/2010,Hire of Agency Staff (Clerical/Secretariat/Other),Finance & Commercial Group - Information and Workplace Strategies,TFPL LTD,1004822,1021.122
"Department for Business, Innovation and Skills","Department for Business, Innovation and Skills",23/08/2010,Hire of Agency Staff (Clerical/Secretariat/Other),Finance & Commercial Group - Information and Workplace Strategies,TFPL LTD,1004824,1021.122
"Department for Business, Innovation and Skills","Department for Business, Innovation and Skills",03/08/2010,Hire of Agency Staff (Clerical/Secretariat/Other),Shareholder Executive - Shareholder Executive,BROOK STREET (UK) LTD,1003334,1046.98375
"Department for Business, Innovation and Skills","Department for Business, Innovation and Skills",06/08/2010,Hire of Agency Staff (Clerical/Secretariat/Other),Finance & Commercial Group - Finance Group,VENN GROUP LTD,1003642,1067.7695
"Department for Business, Innovation and Skills","Department for Business, Innovation and Skills",10/08/2010,Hire of Agency Staff (Clerical/Secretariat/Other),Finance & Commercial Group - Information and Workplace Strategies,BROOK STREET (UK) LTD,1003992,28381.97225
"Department for Business, Innovation and Skills","Department for Business, Innovation and Skills",09/08/2010,Contract Management,"Innovation, Enterprise & Better Regulation Executive - Enterprise Directorate",XCHANGETEAM GROUP LTD,1003464,1257.25
"Department for Business, Innovation and Skills","Department for Business, Innovation and Skills",26/08/2010,Honoraria / Fees and Expenses,Office of Manpower Economics - Office of Manpower Economics,"Personal Expense, Name Witheld",10272364,1400
"Department for Business, Innovation and Skills","Department for Business, Innovation and Skills",26/08/2010,Recruitment Consultancy Costs,Fair Markets Group Summary - Consumer and Competition Policy,SAXTON BAMPFYLDE HEVER plc,1005251,-40000
"Department for Business, Innovation and Skills","Department for Business, Innovation and Skills",09/08/2010,Recruitment Consultancy Costs,"Innovation, Enterprise & Better Regulation Executive - Innovation",BROOKLEIGH CONSULTING LTD,1003947,2729.03
"Department for Business, Innovation and Skills","Department for Business, Innovation and Skills",26/08/2010,Recruitment Consultancy Costs,Fair Markets Group Summary - Consumer and Competition Policy,SAXTON BAMPFYLDE HEVER plc,1005251,8400
"Department for Business, Innovation and Skills","Department for Business, Innovation and Skills",26/08/2010,Recruitment Consultancy Costs,Fair Markets Group Summary - Consumer and Competition Policy,SAXTON BAMPFYLDE HEVER plc,1005251,40000
"Department for Business, Innovation and Skills","Department for Business, Innovation and Skills",05/08/2010,External Legal Advice and Services,Business Group - Advanced Manufacturing Industries,HERBERT SMITH LLP,1003582,-82486.5275
"Department for Business, Innovation and Skills","Department for Business, Innovation and Skills",04/08/2010,External Legal Advice and Services,Universities and Skills Group - USG Admin,ROBERT PALMER,1003467,2800
"Department for Business, Innovation and Skills","Department for Business, Innovation and Skills",17/08/2010,External Legal Advice and Services,Universities and Skills Group - USG Admin,BRICK COURT CHAMBERS,1004654,4410
"Department for Business, Innovation and Skills","Department for Business, Innovation and Skills",26/08/2010,External Legal Advice and Services,Business Group - Advanced Manufacturing Industries,CLIFFORD CHANCE LLP,1005303,42490.66
"Department for Business, Innovation and Skills","Department for Business, Innovation and Skills",05/08/2010,External Legal Advice and Services,Business Group - Advanced Manufacturing Industries,HERBERT SMITH LLP,1003582,82340.8275
